Workbook

Sheet Cover Page
D1: Add company logo
N2: Version 24.2a (for incinerators) - 27/11/24
N4: Note that there is another version of this template available for co-incinerators
B8: Add photo
N13: Notes:
N14: This template may require adjustments by individual operators to meet specific reporting requirements as defined in the site Permit(s)
B29: Annual Performance Report 2024
B31: Permit EPR/XP3436WB
B33: SUEZ R&R Wilton 11 EfW
B35: other name of facility (if applicable)
B37: SUEZ R&R
B39: Year: | C39: 2024
B41: Address: | C41: Wilton International, Middlesbrough, TS10 4RG
B43: Tel:
B45: Email: | C45: paula.bakes@suez.com
B47: Prepared by: | C47: Paula Bakes | F47: Position: | G47: EIR Manager
B49: Approved by: | C49: Alex Biggins | F49: Position: | G49: Plant Manager
B51: Version: | C51: 2
B53: Issue Date:

Sheet Facility Info
A1: =+'Cover Page'!$B$29 -> Annual Performance Report 2024 | E1: =+'Cover Page'!$B$33 -> SUEZ R&R Wilton 11 EfW
A3: Plant Description and Design | K3: Notes:
A5: The Energy from Waste facility operates 24/7 and has a design capacity of 49.9 MW. This requires a fuel input with a maximum continuous rating of around 29.2 tonnes per hour of MSW (from Merseyside County Council and various commercial customers) with an average net calorific value of 9.8 MJ/kg. This equates to 467,200 tonnes per annum at 8000 hours operation per annum through two combustion lines. The plant has two Lines capable of processing up to 500,000 tonnes of waste per year. Incoming waste is delivered to site by rail and bulk vehicle trucks. Rail waste is checked at SUEZ’s Knowsley Transfer station, weighed and then loaded into ISO containers before being placed onto rail carriages and transported to the EFW facility. Road waste is weighed via weighbridge at the Wilton site, and then tipped in the traditional way in the waste reception hall. | K5: Include summary of plant design, design capacity, no. of combustion lines, electrical and heat capacity and any other general information that describes the facility, its location and purpose
A20: Summary of Operational Processes and Procedures
A22: WASTE RECEPTION The plant is designed to accept contractual waste from Merseyside County Council via rail in bespoke ISO containers. Once at the EFW plant, the containers are lifted off the rail carriages by a gantry crane and placed onto mechanical ‘tilters’ The tilters operate hydraulically and move to the edge of the waste pit waste before being tilted to a 60 degree angle, allowing the waste to fall into the waste pit. Waste is also delivered by road via Bulk Transfer Vehicles in the standard operating way. Air needed for combustion is drawn into the furnace from above the waste reception hall so that odour and dust do not escape from the building. BUNKER Mixing of waste occurs as the crane driver sorts the waste looking for unsuitable wastes to be removed, and to improve the homogeneity of the incinerator feedstock. CONTROL ROOM There is one control room which centralises the operation of all equipment, including the grab crane used to mix and load waste into hoppers that feeds the furnace. All on-site functions are monitored automatically and manually. Its systems verify in real time that equipment is functioning properly, continuously monitor the combustion gas, and maximise the efficiency of the entire EfW process. GRATE AND BOILER Waste is lifted into the feed hoppers by the crane, from here waste falls into the furnace-charging chute and then onto the grate system for incineration. The thermal energy released from the burning is used to convert water to super-heated steam. At high pressure, this steam drives a turbine to generate electricity. ENERGY GENERATION Electricity is generated at 11kv, with an electric capacity of 49.9 MWh. The plant also has the capability of exporting steam at 3 different pressures, 58 bar(g), 17 bar(g) and 1.4 bar(g). Steam is exported into the Wilton International site headers for use by a number of plants on site. Where possible the steam is taken from turbine extract to ensure maximum efficiency. BOTTOM ASH Ash left on the grate after incineration is carried by conveyor to a recycling facility opposite the EFW plant. Once operational (February 2017) the bottom ash recycling facility will use a magnet above the conveyor to extract ferrous material for recycling. The remaining bottom ash is processed for recycling following classification of its hazardous properties. WATER-COOLED CONDENSERS After exiting the turbine, the steam is cooled and condensed back into water through water cooled condensers. This recovered water is treated and reused in the boilers to produce more steam. The water cooled condenser is capable of taking the full load from the boiler to ensure continuous operation of the EfW Plant. EMISSION CONTROL The gases from the furnace are subject to a rigorous cleaning process involving selective non-catalytic reduction (SNCR), spray absorbers, and active carbon injection. This removes oxides of nitrogen, acidic gases, dioxins, and heavy metals from the gas stream. AIR POLLUTION CONTROL RESIDUE (APCR) The cleaned gas is passed through fine-fabric bag filters to remove solid particles before it is emitted through the stack. The resultant APCR residue, or fly-ash, contains particles from the incineration process, we have a semi dry lime injection system. It is stored in a sealed silo until it removed from site for disposal. EMISSIONS MONITORING As they pass through the stack, the residual flue gases from the process are continuously monitored before release. Each incinerator line has and independent stack and emissions monitoring system. This data is relayed automatically to the control room. | K22: Include summary of key processes and procedures such as (but not limited to); waste reception, control rooms, grate, bed and boiler, energy & heat generation, cooling systems, residue management, emission controls, health and safety systems, maintenance

Sheet Contents
A1: =+'Cover Page'!$B$29 -> Annual Performance Report 2024 | E1: =+'Cover Page'!$B$33 -> SUEZ R&R Wilton 11 EfW
A3: Contents | K3: Notes:
A4: Section | B4: Subject | H4: Page | K4: Section references and Page nos. to be inserted
B5: Facility Information | K5: Sections and Subjects may require adjustment by individual operators to meet specific reporting requirements as defined in the sites Permit(s)
B6: Operational Data
B7: Operational Summary
B8: Performance Form 1
B9: Energy Form 1
B10: Permit Compliance
B11: Improvements
B12: Public Liaison
B13: Carbon dioxide and nitrous oxide emissions
B14: Residue Quality
B15: Emissions to Water
B16: Emissions to Air (periodically monitored)
B17: Emissions to Air (continuously monitored)
B18: Hydrogen Chloride emissions
B19: Sulphur Dioxide emissions
B20: Oxides of Nitrogen emissions
B21: Total Organic Carbon emissions
B22: Particulate Matter emissions
B23: Carbon Monoxide emissions
B24: Ammonia emissions
A27: Version Control
A28: Section | B28: Information | H28: Date
A35: Distribution
A36: Copy | B36: Name, Role | H36: No.
A45: This report is required under the Industrial Emissions Directive’s Article 55(2) requirements on reporting and public information on waste incineration plants and co-incineration plants, which require the operator to produce an annual report on the functioning and monitoring of the plant and make it available to the public.

Sheet Operational Data
A1: =+'Cover Page'!$B$29 -> Annual Performance Report 2024 | E1: =+'Cover Page'!$B$33 -> SUEZ R&R Wilton 11 EfW
A3: Operational Data
A4: Plant Size | B4: 500 | D4: tonnes pa | E4: 160 | F4: MWth | G4: 49.9 | H4: MWe | J4: Notes:
A5: No. of combustion lines | B5: 2 | D5: No. of Turbines: | F5: 1 | J5: * - RDF to include SRF
J6: ** - Combusted tonnage = tonnes delivered in period + (tonnes in bunker at start of period – tonnes in bunker at end of period), or equivalent calculation depending on plant type
A7: Waste types received | B7: Unit | C7: Q1 | D7: Q2 | E7: Q3 | F7: Q4 | G7: Year Total | H7: %
A8: Household / Local Authority | B8: tonnes | C8: 12144 | D8: 24 | E8: 3321 | F8: 20318 | G8: =SUM(C8:F8) -> 35807 | H8: =IF(G8>0,G8/$G$18,"-") -> 0.07986020505
A9: Commercial & Industrial | C9: 4475 | D9: 2499 | E9: 11360 | F9: 11508 | G9: =SUM(C9:F9) -> 29842 | H9: 0.06655649005 | J9: *** - CHP plants only
A10: Hazardous | C10: - | D10: - | E10: - | F10: - | G10: 0 | H10: - | J10: **** Availability Definition: 'the availability of a line is to be calculated by the number of hours the line reported Continuously Monitored emission levels to the Regulator through the calendar year divided by the total number of hours in that year. The overall plant availability is calculated as the Mean of all lines in the plant. For clarity this includes periods of abnormal operation.' Rationale: The primary function of an Energy from Waste facility is the disposal of waste. It follows therefore that the availability of a plant is determined by the period of time a facility spends undertaking this activity.
A11: Clinical | C11: - | D11: - | E11: - | F11: - | G11: 0 | H11: -
A12: Waste wood (biomass) | C12: - | D12: - | E12: - | F12: - | G12: 0 | H12: -
A13: Refuse Derived Fuel * - H'hold/LA | C13: 103567 | D13: 60548 | E13: 104154 | F13: 88188 | G13: =SUM(C13:F13) -> 356457 | H13: 0.7950045833
A14: Refuse Derived Fuel * - C&I | C14: 1884 | D14: 2983 | E14: 7081 | F14: 14318 | G14: 26266 | H14: 0.05858095193
A15: Other [Please specify] | C15: - | D15: - | E15: - | F15: - | G15: 0 | H15: -
A16: Other [Please specify] | C16: - | D16: - | E16: - | F16: - | G16: 0 | H16: -
A17: Other [Please specify] | C17: - | D17: - | E17: - | F17: - | G17: 0 | H17: -
A18: Total waste received | C18: 122069 | D18: 66054 | E18: 125916 | F18: 134332 | G18: 448371
A19: Rejected Waste | C19: - | D19: - | E19: - | F19: - | G19: =SUM(C19:F19) -> 0 | H19: =IF(G19>0,G19/$G$18,"-") -> -
A20: Unprocessed waste transferred out | C20: 15 | D20: 62 | E20: 7 | F20: 4 | G20: =SUM(C20:F20) -> 88 | H20: =IF(G20>0,G20/$G$18,"-") -> 0.0001962660386
A21: Total waste combusted ** | C21: 122054 | D21: 65992 | E21: 125909 | F21: 134329 | G21: =SUM(C21:F21) -> 448284
J22: Password for protected cells A password has been set to prevent accidental editing of cells with formulae. If you still need to make an edit for some reason then the password = 1234
A23: Energy Usage / Export | B23: Unit | C23: Q1 | D23: Q2 | E23: Q3 | F23: Q4 | G23: Year Total | H23: KWh/te
A24: Power Generated | B24: MWh | C24: - | D24: 24912 | E24: 37669 | F24: 50657 | G24: =SUM(C24:F24) -> 113238 | H24: =IF(G24>0,G24*1000/$G$21,"-") -> 252.6032604
A25: Power Exported | C25: - | D25: =SUM([1]Workings!F24:H24) -> 19305.81 | E25: =SUM([1]Workings!I24:K24) -> 31015.95 | F25: =SUM([1]Workings!L24:N24) -> 40260.18 | G25: =SUM(C25:F25) -> 90581.94 | H25: =IF(G25>0,G25*1000/$G$21,"-") -> 202.0637364
A26: Power Used on site | C26: - | D26: 5607 | E26: 6653 | F26: 10397 | G26: =SUM(C26:F26) -> 22657 | H26: =IF(G26>0,G26*1000/$G$21,"-") -> 50.54162094
A27: Power Imported | C27: 10310 | D27: 1030 | E27: 4335 | F27: 721 | G27: 16396 | H27: =IF(G27>0,G27*1000/$G$21,"-") -> 36.57502833
A28: Parasitic Load | B28: % | C28: - | D28: 0.256 | E28: 0.261 | F28: 0.217 | G28: =IF(G24>0,1-G25/(G24+G27),"-") -> 0.3012485922
A29: Thermal Energy Produced *** | B29: MWh | C29: 342 | D29: 186 | E29: 356 | F29: 363 | G29: =SUM(C29:F29) -> 1247 | H29: =IF(G29>0,G29*1000/$G$21,"-") -> 2.781718732
A30: Thermal Energy Exported *** | C30: 167 | D30: 57 | E30: 110 | F30: 124 | G30: 458 | H30: =IF(G30>0,G30*1000/$G$21,"-") -> 1.02167376
A31: R1 value (if applicable) | B31: R1
A33: Waste Disposal & Recovery | B33: Unit | C33: Q1 | D33: Q2 | E33: Q3 | F33: Q4 | G33: Year Total | H33: % inputs
A34: APC Residues - produced | B34: tonnes | C34: 2511 | D34: 1662 | E34: 2513 | F34: 2597 | G34: =SUM(C34:F34) -> 9283 | H34: =IF(G34>0,G34/$G$21,"-") -> 0.02070785484
A35: IBA - produced | C35: 27188 | D35: 14311 | E35: 28073 | F35: 27455 | G35: 97027 | H35: =IF(G35>0,G35/$G$21,"-") -> 0.2164409169
A36: Metals recycling | C36: 5001 | D36: 2626 | E36: 4938 | F36: 4929 | G36: =SUM(C36:F36) -> 17494 | H36: 0.03902436848
A37: Ferrous | C37: 2985 | D37: 1533 | E37: 2851 | F37: 2999 | G37: =SUM(C37:F37) -> 10368 | H37: 0.02312819552
A38: Non Ferrous | C38: 2010 | D38: 1055 | E38: 2082 | F38: 1930 | G38: 7077 | H38: 0.01578686725
A39: Mixed Metals Skips out | C39: 6 | D39: 37 | E39: 8 | F39: 4 | G39: 55 | H39: 0.0001226900804
A41: Raw Material Usage | B41: Unit | C41: Q1 | D41: Q2 | E41: Q3 | F41: Q4 | G41: Year Total | H41: kg or Ltr /te
A42: Mains Water | B42: ltrs | C42: 16423 | D42: 12603 | E42: 12606 | F42: 12767 | G42: =SUM(C42:F42) -> 54399 | H42: =IF(G42>0,G42/$G$21,"-") -> 0.1213494124
A43: Other Water | B43: ltrs | C43: 177271 | D43: 142749 | E43: 234798 | F43: 195012 | G43: 749830 | H43: =IF(G43>0,G43/$G$21,"-") -> 1.672667327
A44: Ammonia | B44: kgs | C44: 472900 | D44: 269700 | E44: 569400 | F44: 588600 | G44: 1900600 | H44: 4.239723033
A45: Urea | B45: kgs | C45: - | D45: - | E45: - | F45: - | G45: =SUM(C45:F45) -> 0 | H45: -
A46: Activated Carbon | B46: kgs | C46: 25860 | D46: 13420 | E46: 30140 | F46: 28420 | G46: =SUM(C46:F46) -> 97840 | H46: 0.2182544994
A47: Lime / hydrated lime | B47: kgs | C47: 981460 | D47: 767940 | E47: 1193580 | F47: 1129300 | G47: =SUM(C47:F47) -> 4072280 | H47: 9.084152011
A48: Fuel oil | B48: ltrs | C48: 1196 | D48: 10979 | E48: 1164 | F48: 449 | G48: =SUM(C48:F48) -> 13788 | H48: 0.03075728779
A49: Gas | B49: MWh | C49: 3868 | D49: 2852 | E49: 2044 | F49: 2197 | G49: =SUM(C49:F49) -> 10961
A50: Other | G50: 0
A52: Summary | B52: Line/Unit | C52: Q1 | D52: Q2 | E52: Q3 | F52: Q4 | G52: Year Total | I52: Hrs in year
A53: Availability of waste combustion by line, hrs **** | B53: 1 | C53: 1971 | D53: 737 | E53: 2208 | F53: 2194 | G53: =SUM(C53:F53) -> 7110 | H53: =+G53/$I$53 -> 0.8116438356 | I53: 8760
B54: 2 | C54: 2184 | D54: 1385 | E54: 2207 | F54: 2068 | G54: 7844 | H54: =+G54/$I$53 -> 0.89543379
B55: 3 | C55: - | D55: - | E55: - | F55: - | G55: 0 | H55: 0
B56: 4 | C56: - | D56: - | E56: - | F56: - | G56: 0 | H56: 0
B57: 5 | C57: - | D57: - | E57: - | F57: - | G57: =SUM(C57:F57) -> 0 | H57: 0
A58: Overall Availability, mean avg. of all lines, hrs | C58: 2078 | D58: 1061 | E58: 2208 | F58: 2131 | G58: 7478 | H58: 0.853652968
A59: Hours of turbine operations, hrs | B59: 1 | C59: 0 | D59: 1305 | E59: 1220.15 | F59: 2061.7 | G59: 4586.85 | H59: 0.5236130137
A60: Hours of turbine operations, hrs | B60: 2 | G60: 0 | H60: 0
A61: Hours of heat / steam export | G61: 0 | H61: =IF(B61>0,G60/I53,"n/a") -> n/a
A62: Net Calorific Value of waste | B62: MJ/kg | C62: 9.18 | D62: 9.32 | E62: 9.49 | F62: 9.52
A63: Abnormal Events | B63: qty. | E63: 1 | G63: =SUM(C63:F63) -> 1 | H63: =IF(G63>0,"yes","no") -> yes
A64: Abnormal operation | B64: hours | E64: 1 | G64: 1 | H64: =+(G64)/I53 -> 0.0001141552511
A65: Permit Breaches | B65: qty. | G65: 0 | H65: =IF(G65>0,"yes","no") -> no

Sheet Operational Summary
A1: =+'Cover Page'!$B$29 -> Annual Performance Report 2024 | E1: =+'Cover Page'!$B$33 -> SUEZ R&R Wilton 11 EfW
A3: Summary of Plant Operations and Maintenance during the reporting year | K3: Notes:
A5: We have had a very good year for production in 2024 with minimal lost production compared to previous years. The turbine major service in 2023 has identified some major repairs that have required the rotor to be sent back to MAN - Oberhausen for additional works, the rotor was returned in April 2024 and installed during the planned outage. There was then a further issue with the coupling bolts loosening whilst in operation, this brought the turbine back off in August following an unrelated trip, the vibrations due to imbalance caused a further shutdown and the coupling bolts to be re tightened by MAN causing a further 981 hours of lost production. The planned maintenance period during 2024; the major maintenance activity which started in April was carried out to plan with Line 1 side walls boiler tube and refractory replacement being completed, statutory inspections completed as required and repair works in the FGT area carried out as required. Generator works completed and the rotor reconnected to the turbine shaft. The planned shutdown periods were: Line 1, 1st April - 31st May 2024 Line 2, 3rd April - 2nd May 2024 | K5: Include summary of key operational and/or maintenance activity undertaken in the year, such as any major component upgrades and/or replacements
A29: Summary of Residue Handling for the reporting year
A31: Residue handling system has performed well in 2024, planned repairs and maintenance carried out during the planned maintenance outage. There was a Line 2 discharger cylinder failure in Dec which was repaired and brought back into servioce with no further issues. | K31: Include in here a summary of residue handling regimes and destinations
A54: =+'Cover Page'!C39 -> 2024 | B54: Plant shut-downs
A55: Date | B55: Reason for shut-down | K55: Provide a very brief reason for plant shut-down e.g. "Shut-down prior to major outage"; "Emergency shut-down due to boiler tube leak" There is no need to include periods of hot-standby here (e.g. to clear feed chute hopper blockages). For clinical waste incinerators which require regular shut-downs for boiler cleaning, there is no need to record these here.
A56: 2024-08-01 | B56: Line 1 grate bar failure
A57: 13/02/2024 | B57: Line 1 grate bar failure
A58: 27/02/2024 | B58: Line 1 grate bar failure
A59: 2024-02-03 | B59: Line 1 grate bar failure
A60: 2024-04-05 | B60: Line 2 discharger blockage
A61: 2026-01-06 | B61: Line 2 grate expansion joint failure
A62: 30/09/2024 | B62: Sembcorp gas supply issue
A63: 30/10/2024 | B63: Line 1 boiler trip/Discharger blockage
A64: 25/11/2024 | B64: Line 2 discharger blockage
A65: 27/12/2024 | B65: Line 2 discharger cylinder failure

Sheet Perf. Form 1
A1: =+'Cover Page'!C39 -> 2024 | B1: Annual Reporting Performance Form 1
A3: =+'Cover Page'!B31 -> Permit EPR/XP3436WB | F3: Operator: | G3: =+'Cover Page'!B37 -> SUEZ R&R
A4: Facility: | B4: =+'Cover Page'!B33:I33 -> SUEZ R&R Wilton 11 EfW | F4: Form: | G4: Performance 1
A6: Reporting Period from: | D6: 2024-01-01 | F6: to: | G6: 2024-12-01
A8: =+A1 -> 2024 | B8: Annual Reporting of Waste Disposal and Recovery
A9: Waste Description | C9: Disposal Route(s) | E9: Disposal Tonnes | G9: Recovery Tonnes | I9: % / tonne of waste incinerated
A10: 1) Hazardous Wastes
A11: APC Residues | E11: 9808 | I11: =IF((E11+G11)>0,(E11+G11)/'Operational Data'!$G$21, "-") -> 0.02187898743
A12: IBA | I12: =IF((E12+G12)>0,(E12+G12)/'Operational Data'!$G$21, "-") -> -
I13: =IF((E13+G13)>0,(E13+G13)/'Operational Data'!$G$21, "-") -> -
I14: =IF((E14+G14)>0,(E14+G14)/'Operational Data'!$G$21, "-") -> -
A15: Total Hazardous Waste | E15: =SUM(E11:F14) -> 9808 | G15: =SUM(G11:H14) -> 0 | I15: =IF((E15+G15)>0,(E15+G15)/'Operational Data'!$G$21, "-") -> 0.02187898743
A17: 2) Non-Hazardous Wastes
A18: IBA | E18: 97027 | I18: =IF((E18+G18)>0,(E18+G18)/'Operational Data'!$G$21, "-") -> 0.2164409169
A19: Ferrous Metal | E19: 10368 | I19: =IF((E19+G19)>0,(E19+G19)/'Operational Data'!$G$21, "-") -> 0.02312819552
A20: Process Water | I20: =IF((E20+G20)>0,(E20+G20)/'Operational Data'!$G$21, "-") -> -
I21: =IF((E21+G21)>0,(E21+G21)/'Operational Data'!$G$21, "-") -> -
I22: =IF((E22+G22)>0,(E22+G22)/'Operational Data'!$G$21, "-") -> -
A23: Total Non-Hazardous Waste | E23: =SUM(E18:F22) -> 107395 | G23: =SUM(G18:H22) -> 0 | I23: =IF((E23+G23)>0,(E23+G23)/'Operational Data'!$G$21, "-") -> 0.2395691124
A24: TOTAL WASTE | E24: =+E23+E15 -> 117203 | G24: =+G23+G15 -> 0 | I24: =IF((E24+G24)>0,(E24+G24)/'Operational Data'!$G$21, "-") -> 0.2614480999
A26: Operator’s comments :
A31: =+A1 -> 2024 | B31: Annual Reporting of Water and Other Raw Material Usage
A32: Raw Material | E32: Usage | G32: Unit | H32: Specific Usage | J32: Unit
A33: Mains Water | E33: =+'Operational Data'!G42 -> 54399 | G33: m3 | H33: =IF(E33>0,E33/'Operational Data'!$G$21,"-") -> 0.1213494124 | J33: m3/te
A34: Total Water | E34: =+'Operational Data'!G43+'Operational Data'!G42 -> 804229 | G34: m3 | H34: =IF(E34>0,E34/'Operational Data'!$G$21,"-") -> 1.794016739 | J34: m3/te
A35: Urea / Ammonia | E35: =+'Operational Data'!G44 -> 1900600 | G35: kg | H35: =IF(E35>0,E35/'Operational Data'!$G$21,"-") -> 4.239723033 | J35: kg/te
A36: Activated Carbon | E36: =+'Operational Data'!G46 -> 97840 | G36: kg | H36: =IF(E36>0,E36/'Operational Data'!$G$21,"-") -> 0.2182544994 | J36: kg/te
A37: Lime / hydrated lime / Sodium Bicarb. | E37: =+'Operational Data'!G47 -> 4072280 | G37: kg | H37: =IF(E37>0,E37/'Operational Data'!$G$21,"-") -> 9.084152011 | J37: kg/te
A39: Operator’s comments :
A43: =+A31 -> 2024 | B43: Annual Reporting of other performance indicators
A44: Parameter | C44: Results by Line
C45: A1 | D45: A2 | E45: A3 | F45: A4 | G45: A5 | I45: Turbine 1 | J45: Turbine 2
A46: Operating hours for the year, hours | C46: 7110 | D46: 7844 | I46: 4587
A47: Number of periods of abnormal operation, qty. | C47: 1
A48: Cumulative hours of abnormal operation for this year, hours | C48: 1
A50: Operator’s comments :
A54: Signed: | G54: Date:

Sheet Energy Form 1
A1: =+'Cover Page'!C39 -> 2024 | B1: Annual Reporting of Energy Usage/Export
A3: =+'Cover Page'!B31 -> Permit EPR/XP3436WB | F3: Operator: | G3: =+'Cover Page'!B37 -> SUEZ R&R
A5: Facility: | B5: =+'Cover Page'!B33:I33 -> SUEZ R&R Wilton 11 EfW | F5: Form: | G5: Energy 1
A7: Reporting Period from: | D7: =+'Perf. Form 1'!D6:E6 -> 2024-01-01 | F7: to: | G7: =+'Perf. Form 1'!G6:H6 -> 2024-12-01
A9: Energy Source | D9: Energy Usage | F9: Unit | G9: Specific Usage (KWh/tonne incinerated
A10: Electricity Produced | D10: 113239 | F10: MWh | G10: =+'Operational Data'!H24 -> 252.6032604
A11: Electricity Imported | D11: 16396 | F11: MWh | G11: =+'Operational Data'!H27 -> 36.57502833
A12: Electricity Exported | D12: 90581.94 | F12: MWh | G12: =+'Operational Data'!H25 -> 202.0637364
A13: Gas Oil | D13: 10961 | F13: tonnes | G13: 0.02
A14: Steam/hot water exported | D14: 148.19361 | F14: GWh | G14: =+'Operational Data'!H30 -> 1.02167376
A18: Operator’s comments :
A29: Signed: | G29: Date:

Sheet Permit Compliance
A1: =+'Cover Page'!$B$29 -> Annual Performance Report 2024 | E1: =+'Cover Page'!$B$33 -> SUEZ R&R Wilton 11 EfW
A3: Summary of Permit Compliance
A5: Compliance with permit limits for continuously monitored pollutants
A7: The plant met its emission limits as shown in the table below:
A8: Substance | C8: Percentage time compliant during operationNote 1 | L8: Notes:
C9: Half-hourly limit | F9: Daily limit | L9: Note 1: Please report to 2 decimal places, i.e. xx.xx% Note 2: Please enter into this table any permit non-compliances that the EA has given a CCS score for. Please also enter any other non-compliances which you have notified to the EA (e.g. ELV exceedances) but which have not yet been assessed by the EA. There is no need to enter any notifications which were subsequently assessed by the EA not to be permit breaches. Note 3: Please enter information here (rather than just referencing the notifications that were sent to the EA) including where relevant the incineration line reference, pollutant and value of the measured result for any ELV exceedances.
A10: Particulates | C10: 1 | F10: 1
A11: Oxides of nitrogen | C11: 1 | F11: 1
A12: Sulphur dioxide | C12: 1 | F12: 1
A13: Carbon monoxide | C13: 100% 95% of 10-min averages | F13: 1
A14: Total organic carbon | C14: 1 | F14: 1
A15: Hydrogen chloride | C15: 1 | F15: 1
A16: Hydrogen fluoride | C16: N/A | F16: N/A
C17: xx.xx % | F17: xx.xx %
A19: Summary of non-compliances under the permit Note 2
A20: Date | B20: Summary of non-compliance Note 3 | D20: Reason | G20: Measures taken to prevent reoccurrence | H20: CCS score if applicable*
H21: Impact | I21: Root cause
A27: *If the Environment Agency (EA) has given a Compliance Classification Scheme (CCS) score due to a permit non-compliance it should be entered here (CCS4 = No impact; CCS3 = Minor impact; CCS2 = Significant impact; CCS1 = Major impact). If the EA has not yet assessed a non-compliance which you have notified to them, these columns should be left blank.
A29: Summary of any complaints received and actions to taken to resolve them.
A30: Date | B30: Summary of complaint [including Line/Reference] | E30: Reason (including whether substantiated by the operator or the EA) | H30: Measures taken to prevent reoccurrence

Sheet Improvements
A1: =+'Cover Page'!$B$29 -> Annual Performance Report 2024 | E1: =+'Cover Page'!$B$33 -> SUEZ R&R Wilton 11 EfW
A3: Summary of Plant Improvements
A5: Summary of any efficiency improvements that have been completed within the year.
A6: Improvements have been made to the Line 1 side wall boiler tube design to improve heat transfer in the first and second passes, there has been an extended level of incolnel overlaid tube fitted to the top 6.5meters in the first pass and a more robust nitrite bonded refractory tile system installed on those walls.
A16: Summary of any permit improvement conditions that have been completed within the year and the resulting environmental benefits.
A27: Summary of any changes to the plant or operating techniques which required a variation to the permit and a summary of the resulting environmental impact.
A38: Summary of any other improvements made to the plant or planned to be made and a summary of the resulting environmental benefits.

Sheet Public Liasion
A1: =+'Cover Page'!$B$29 -> Annual Performance Report 2024 | E1: =+'Cover Page'!$B$33 -> SUEZ R&R Wilton 11 EfW
A3: Details of Public & Stakeholder Liaison
A5: Summary of events held during the reporting year.
A6: Date | C6: Description
A7: 2024-01-09 | C7: Wilton Valuer
A8: 2024-03-04 | C8: Itochu
A9: 2024-03-05 | C9: Technip
A10: 2024-03-11 | C10: SUEZ France
A11: 2024-03-13 | C11: EA Inspection
A12: 2024-03-19 | C12: TTE
A13: 2024-03-20 | C13: NETA training
A14: 2024-04-17 | C14: Quadriga Audit
A15: 2024-06-20 | C15: MWDA
A16: 2024-06-27 | C16: Cleveland Fire Brigade
A17: 2024-07-04 | C17: MAPP
A18: 2024-07-09 | C18: EA Inspection
A19: 2024-07-29 | C19: EA Operations Monitoring Audit
A20: 2024-09-20 | C20: EA IBA Audit
A21: 2024-09-24 | C21: Site Valuation Survey
A22: 08-10th October | C22: SHEQ Audit
A23: 2024-10-23 | C23: Redcar and Cleveland Council
A24: 2024-10-25 | C24: RHI Audit
A25: 2024-11-21 | C25: Stokesley Engineers
A26: 2024-11-26 | C26: Operational Review Audit
A28: List of events planned for next year
A29: Date | C29: Description
A41: If you wish to be involved in the public liaison programme, please contact _________________

Sheet CO2 N2O
A1: =+'Cover Page'!$B$29 -> Annual Performance Report 2024 | C1: =+'Cover Page'!$B$33 -> SUEZ R&R Wilton 11 EfW
A3: Carbon dioxide emissions and biogenic content of waste inputs | F3: Notes:
A5: Carbon dioxide emissions (all types of plant)
B6: Annual mass of carbon dioxide released | C6: tonnes | D6: 379215.8185
B7: Annual mass of carbon dioxide released per tonne of waste burned | C7: t CO2 / t waste | D7: =D6/'Operational Data'!G21 -> 0.8459276229
B8: Annual mass of carbon dioxide released per MWh of energy exported | C8: t CO2 / MWh export | D8: =D6/'Operational Data'!G25 -> 4.186439576
B9: Description of how annual carbon dioxide mass emission has been calculated. See Note 1 | C9: Data supplied directly from CEMS | F9: Note 1: All permits require operators to continuously monitor CO2 to EN14181 and flow to BS EN 16911-2 (unless otherwise agreed in writing). Operators must therefore use the results from these instruments to calculate their annual CO2 emissions. Where an operator does not have a flow meter calibrated to BS EN 16911-2, the averaged flow measurement from that year's periodic monitoring can be used instead. If the plant does not have calibrated CO2 CEMS, a suitably justified emissions factor can be used.
A10: Nitrous oxide emissions (only plants which use ammonia or urea to abate NOx emissions)
B11: Annual mass emissions of nitrous oxide | C11: tonnes N2O | D11: 0.451
B12: Description of how annual nitrous oxide mass emission has been calculated See Note 2 | C12: Data supplied directly from CEMS | F12: Note 2: All permits require operators to continuously monitor N2O to EN14181 and flow to BS EN 16911-2, unless otherwise agreed in writing. Operators must therefore use the results from these instruments to calculate their annual N2O emissions. Where an operator does not have a flow meter calibrated to BS EN 16911-2, the averaged flow measurement from periodic monitoring can be used instead. If the plant does not have calibrated N2O CEMS, data from periodic monitoring or a suitably justified emissions factor can be used instead.
A13: Total annual carbon dioxide + nitrous oxide emissions. See Note 3. | C13: tonnes CO2e | D13: =D6+D11*265 -> 379335.3335 | F13: Note 3: Total annual carbon dioxide and nitrous oxide emissions reported as carbon dioxide equivalent where 1 tonne nitrous oxide is equivalent to 265 tonnes carbon dioxide.
A14: Biogenic CO2 emissions (See Note 4) | F14: Note 4: Only plants combusting residual municipal waste, refuse derived fuel or solid recovered fuel need complete this section.
B15: Percentage of total carbon dioxide emissions arising from biogenic waste | C15: % | D15: 0.5329
B16: No. of measurements undertaken | C16: Number | D16: 5
B17: Description of how percentage biogenic carbon dioxide emissions have been measured or calculated. See Note 5 | C17: Assessed from results of C14 dating from samples collected through a Biogenic CO2 Analyser. Average of available results | F17: Note 5: The results from C14 sampling should be used if this is carried out at the plant (either via an installed sampler or from spot samples). Otherwise, as an approximation (and in lieu of any more accurate metrics which may be developed in future), the measured or estimated biogenic fraction by net calorific value (see Note 6) can be assumed to be the same as the biogenic CO2 fraction of the total CO2 emissions from the plant.
A18: Biogenic fraction of waste feedstock (See Note 4)
B19: Yearly average biogenic percentage of the waste by net calorific value (NCV) | C19: % | D19: 0.41925
B20: Description of how biogenic percentage (by NCV) has been calculated or estimated. See Note 6 | C20: Assessed from breakdown of waste composition from third-party reporting (M.E.L) and the respective carbon content of each component. | F20: Note 6: If C14 sampling is carried out at the plant, the methodology set out in the embedded document entitled "Renewable Energy Association Energy Content of Fuels - Description of Method" embedded below can be used to calculate the biogenic percentage by net calorific value. Otherwise, data from waste sampling or BIOMA software can be used; or if none of these are available, an estimated figure with justification or a figure assumed on the basis of up-to-date industry data can be used.
B21: Yearly average biogenic percentage of the waste by mass | C21: % | D21: 0.47
B22: If waste sampling undertaken, no. of samples used to ascertain average biogenic percentages above | C22: Number | D22: 4
B23: Description of how biogenic percentage (by mass) has been calculated or estimated. See Note 7 | C23: Assessed from breakdown of waste composition from third-party reporting (M.E.L) and the respective carbon content of each component. | F23: Note 7: Where available, data from waste sampling should be used; otherwise, an estimated figure with justification can be used, or a figure assumed on the basis of up-to-date industry data.
B25: Comments:

Sheet Residue Quality
A1: =+'Cover Page'!$B$29 -> Annual Performance Report 2024 | E1: =+'Cover Page'!$B$33 -> SUEZ R&R Wilton 11 EfW
A3: Residue Quality Monitoring Requirements
A5: Summary of monitoring undertaken and compliance
A6: Quarterly IBA & APCR samples taken on Lines 1&2
A8: Fortnightly hazard assessment carried out on Lines 1&2
A13: Commentary on any specific events
A14: Date & Event | C14: Description
A27: Residue Quality Monitoring Results
A28: Parameter (unit) | C28: Limit* | D28: Normal Operation
D29: Bottom ash | F29: APC Residues
A30: Loss on Ignition (average %) | C30: <5%
A31: Total Organic Carbon (average %) | C31: <3% | D31: 0.96
A32: No. of Assessments Undertaken | C32: --- | D32: 1 sample per quarter | F32: 1 sample per quarter
A33: No. of Hazardous Results | C33: --- | D33: Fortnightly hazard assessment, unless plant outage
A34: * The permit will specify a limit of either 5% loss on ignition or 3% total organic carbon. If both are measured anyway, please enter the results here, even where the limit does not apply.
A36: Comments :

Sheet Water
A1: =+'Cover Page'!$B$29 -> Annual Performance Report 2024 | E1: =+'Cover Page'!$B$33 -> SUEZ R&R Wilton 11 EfW
A3: Emissions to Water
A5: Summary of monitoring undertaken and compliance
A6: None carried out
A13: Commentary on any specific events
A14: Date & Event | C14: Description
A22: Emissions to Water / Sewer
A23: Parameter | D23: Monitoring Frequency | F23: Limit | G23: Target | H23: Max. | I23: Average

Sheet Air (periodic)
A1: =+'Cover Page'!$B$29 -> Annual Performance Report 2024 | E1: =+'Cover Page'!$B$33 -> SUEZ R&R Wilton 11 EfW
A3: Emissions to Air (periodically monitored)
A5: Summary of monitoring undertaken, standards used and compliance | K5: Notes:
K6: Template may require adjustment for any bespoke monitoring requirements of permit - please also check that all default ELV values, reference periods and the stated oxygen reference value match those for your plant, and edit if necessary!
A9: Results of emissions to air that are periodically monitored - oxygen reference 11%
A10: Substance | C10: Ref. Period | D10: Emission Limit Value | F10: Average | K10: User to add additional tables as necessary, depending on whether quarterly or bi-annual reporting is required for the compliance year
F11: A1 | G11: A2 | H11: A3 | I11: A4 | J11: A5
A12: Hydrogen fluoride | C12: 1 hr | D12: 1 mg/m3 | F12: 0.031 | G12: 0.03
A13: Cd and Tl and their compounds | C13: 0.5-8hrs | D13: 0.02 mg/m3 | F13: 0.00085 | G13: 0.00085
A14: Hg and its compounds | C14: 0.5-8hrs | D14: 0.02 mg/m3 | F14: 0.00065 | G14: 0.001415
A15: Sb, As, Pb, Cr, Co, Cu, Mn, Ni, V and their compounds | C15: 0.5-8hrs | D15: 0.3 mg/m3 | F15: 0.0985 | G15: 0.0295
A16: Dioxins & Furans (I-TEQ) | C16: 6-8hrs | D16: 0.06 ng/m3 | F16: 0.00095 | G16: 0.02455
A17: PCBs (WHO-TEQ Humans / Mammals) | C17: 6-8hrs | D17: None set ng/m3 | F17: 0.001346 | G17: 0.00579
A18: PCBs (WHO-TEQ Fish) | C18: 6-8hrs | D18: None set ng/m3 | F18: 7.2e-05 | G18: 0.00029
A19: PCBs (WHO-TEQ Birds) | C19: 6-8hrs | D19: None set ng/m3 | F19: 0.005322 | G19: 0.01505
A20: Dioxins & Furans (WHO-TEQ Humans / Mammals) | C20: 6-8hrs | D20: None set ng/m3 | F20: 0.00095 | G20: 0.0264
A21: Dioxins & Furans (WHO-TEQ Fish) | C21: 6-8hrs | D21: None set ng/m3 | F21: 0.001 | G21: 0.0295
A22: Dioxins & Furans (WHO-TEQ Birds) | C22: 6-8hrs | D22: None set ng/m3 | F22: 0.0018 | G22: 0.04265
A23: Anthanthrene | C23: 6-8hrs | D23: None set µg/m3 | F23: 0.0015 | G23: 0.0011
A24: Benzo(a)anthracene | C24: 6-8hrs | D24: None set µg/m3 | F24: 0.0075 | G24: 0.0026
A25: Benzo(a)pyrene | C25: 6-8hrs | D25: None set µg/m3 | F25: 0.003 | G25: 0.0011
A26: Benzo(b)fluoranthene | C26: 6-8hrs | D26: None set µg/m3 | F26: 0.004 | G26: 0.0026
A27: Benzo(b)naptho(2,1-d) thiophene | C27: 6-8hrs | D27: None set µg/m3 | F27: 0.0015 | G27: 0.0011
A28: Benzo(c)phenanthrene | C28: 6-8hrs | D28: None set µg/m3 | F28: 0.003 | G28: 0.0011
A29: Benzo(ghi)perylene | C29: 6-8hrs | D29: None set µg/m3 | F29: 0.0025 | G29: 0.0023
A30: Benzo(k)fluoranthene | C30: 6-8hrs | D30: None set µg/m3 | F30: 0.0025 | G30: 0.0011
A31: Cholanthrene | C31: 6-8hrs | D31: None set µg/m3 | F31: 0.0015 | G31: 0.0011
A32: Chrysene | C32: 6-8hrs | D32: None set µg/m3 | F32: 0.009 | G32: 0.0051
A33: Cyclopenta(cd)pyrene | C33: 6-8hrs | D33: None set µg/m3 | F33: 0.0045 | G33: 0.00205
A34: Dibenzo(ai)pyrene | C34: 6-8hrs | D34: None set µg/m3 | F34: 0.0015 | G34: 0.0011
A35: Dibenzo(ah)anthracene | C35: 6-8hrs | D35: None set µg/m3 | F35: 0.0015 | G35: 0.0011
A36: Fluoranthene | C36: 6-8hrs | D36: None set µg/m3 | F36: 0.0555 | G36: 0.04405
A37: Indeno(123-cd) pyrene | C37: 6-8hrs | D37: None set µg/m3 | F37: 0.002 | G37: 0.0011
A38: Naphthalene | C38: 6-8hrs | D38: None set µg/m3 | F38: 0.4 | G38: 0.1707
A39: Comments :

Sheet Air (CEMS)
A1: =+'Cover Page'!$B$29 -> Annual Performance Report 2024 | I1: =+'Cover Page'!$B$33 -> SUEZ R&R Wilton 11 EfW
A3: Emissions to Air (continuously monitored)
N4: Notes:
A5: Summary of monitoring undertaken, standards used and compliance | N5: Template may require adjustment for any bespoke monitoring requirements of permit
N6: Please check that all default ELV values match those for your plant and edit if necessary!
N7: Report to 1 decimal place
A11: Results of emissions to air that are continuously monitored (maximum and average values for each line) - oxygen reference 11%
A12: Substance | B12: Reference Period | C12: Emission Limit Value | D12: A1 | F12: A2 | H12: A3 | J12: A4 | L12: A5
D13: Max. | E13: Avg. | F13: Max. | G13: Avg. | H13: Max. | I13: Avg. | J13: Max. | K13: Avg. | L13: Max. | M13: Avg.
A14: Oxides of nitrogen | B14: Daily mean | C14: 180 mg/m3 | D14: =NOx!$O$19 -> 177 | E14: =NOx!$N$19 -> 150.75 | F14: =NOx!$O$34 -> 222 | G14: =NOx!$N$34 -> 136.25 | H14: =NOx!$O$49 -> 0 | I14: =NOx!$N$49 ->  | J14: =NOx!$O$64 -> 0 | K14: =NOx!$N$64 ->  | L14: =NOx!$O$79 -> 0 | M14: =NOx!$N$79 -> 
B15: ½ hourly mean | C15: 400 mg/m3 | D15: =NOx!$M$19 -> 387 | E15: =NOx!$L$19 -> 150.75 | F15: =NOx!$M$34 -> 866 | G15: =NOx!$L$34 -> 136.25 | H15: =NOx!$M$49 -> 0 | I15: =NOx!$L$49 ->  | J15: =NOx!$M$64 -> 0 | K15: =NOx!$L$64 ->  | L15: =NOx!$M$79 -> 0 | M15: =NOx!$L$79 -> 
A16: Particulates | B16: Daily mean | C16: 5 mg/m3 | D16: =Particulates!$O$19 -> 2 | E16: =Particulates!$N$19 -> 0.8 | F16: =Particulates!$O$34 -> 0.8 | G16: =Particulates!$N$34 -> 0.4333333333 | H16: =Particulates!$O$49 -> 0 | I16: =Particulates!$N$49 ->  | J16: =Particulates!$O$64 -> 0 | K16: =Particulates!$N$64 ->  | L16: =Particulates!$O$79 -> 0 | M16: =Particulates!$N$79 -> 
B17: ½ hourly mean | C17: 30 mg/m3 | D17: =Particulates!$M$19 -> 7.1 | E17: =Particulates!$L$19 -> 0.8 | F17: =Particulates!$M$34 -> 4.3 | G17: =Particulates!$L$34 -> 0.4333333333 | H17: =Particulates!$M$49 -> 0 | I17: =Particulates!$L$49 ->  | J17: =Particulates!$M$64 -> 0 | K17: =Particulates!$L$64 ->  | L17: =Particulates!$M$79 -> 0 | M17: =Particulates!$L$79 -> 
A18: Total Organic Carbon | B18: Daily mean | C18: 10 mg/m3 | D18: =TOC!$O$19 -> 0.7 | E18: =TOC!$N$19 -> 0.425 | F18: =TOC!$O$34 -> 1.5 | G18: =TOC!$N$34 -> 0.75 | H18: =TOC!$O$49 -> 0 | I18: =TOC!$N$49 ->  | J18: =TOC!$O$64 -> 0 | K18: =TOC!$N$64 ->  | L18: =TOC!$O$79 -> 0 | M18: =TOC!$N$79 -> 
B19: ½ hourly mean | C19: 20 mg/m3 | D19: =TOC!$M$19 -> 267 | E19: =TOC!$L$19 -> 0.425 | F19: =TOC!$M$34 -> 13 | G19: =TOC!$L$34 -> 0.75 | H19: =TOC!$M$49 -> 0 | I19: =TOC!$L$49 ->  | J19: =TOC!$M$64 -> 0 | K19: =TOC!$L$64 ->  | L19: =TOC!$M$79 -> 0 | M19: =TOC!$L$79 -> 
A20: Hydrogen chloride | B20: Daily mean | C20: 8 mg/m3 | D20: =HCl!$O$19 -> 7 | E20: =HCl!$N$19 -> 3.583333333 | F20: =HCl!$O$34 -> 8 | G20: =HCl!$N$34 -> 5.25 | H20: =HCl!$O$49 -> 0 | I20: =HCl!$N$49 ->  | J20: =HCl!$O$64 -> 0 | K20: =HCl!$N$64 ->  | L20: =HCl!$O$79 -> 0 | M20: =HCl!$N$79 -> 
B21: ½ hourly mean | C21: 60 mg/m3 | D21: =HCl!$M$19 -> 38 | E21: =HCl!$L$19 -> 3.583333333 | F21: =HCl!$M$34 -> 32 | G21: =HCl!$L$34 -> 5.25 | H21: =HCl!$M$49 -> 0 | I21: =HCl!$L$49 ->  | J21: =HCl!$M$64 -> 0 | K21: =HCl!$L$64 ->  | L21: =HCl!$M$79 -> 0 | M21: =HCl!$L$79 -> 
A22: Sulphur dioxide | B22: Daily mean | C22: 40 mg/m3 | D22: ='SO2'!$O$19 -> 38 | E22: ='SO2'!$N$19 -> 22 | F22: ='SO2'!$O$34 -> 38 | G22: ='SO2'!$N$34 -> 26.33333333 | H22: ='SO2'!$O$49 -> 0 | I22: ='SO2'!$N$49 ->  | J22: ='SO2'!$O$64 -> 0 | K22: ='SO2'!$N$64 ->  | L22: ='SO2'!$O$79 -> 0 | M22: ='SO2'!$N$79 -> 
B23: ½ hourly mean | C23: 200 mg/m3 | D23: ='SO2'!$M$19 -> 96 | E23: ='SO2'!$L$19 -> 22 | F23: ='SO2'!$M$34 -> 86 | G23: ='SO2'!$L$34 -> 26.33333333 | H23: ='SO2'!$M$49 -> 0 | I23: ='SO2'!$L$49 ->  | J23: ='SO2'!$M$64 -> 0 | K23: ='SO2'!$L$64 ->  | L23: ='SO2'!$M$79 -> 0 | M23: ='SO2'!$L$79 -> 
A24: Carbon monoxide | B24: Daily mean | C24: 50 mg/m3 | D24: ='CO 95% 10 min'!Q2 -> 0 | E24: ='CO 95% 10 min'!P22 -> 8.583333333 | F24: ='CO 95% 10 min'!Q37 -> 15 | G24: ='CO 95% 10 min'!P37 -> 6.416666667 | H24: ='CO 95% 10 min'!Q52 -> 0 | I24: ='CO 95% 10 min'!P52 ->  | J24: ='CO 95% 10 min'!Q67 -> 0 | K24: ='CO 95% 10 min'!P67 ->  | L24: ='CO 95% 10 min'!Q82 -> 0 | M24: ='CO 95% 10 min'!P82 -> 
B25: ½ hourly mean * | C25: 100 mg/m3 *
B26: 95%ile 10-min avg * | C26: 150 mg/m3 * | D26: ='CO 95% 10 min'!M22 -> 10.16666667 | F26: ='CO 95% 10 min'!M37 -> 13.75 | H26: ='CO 95% 10 min'!M52 ->  | J26: ='CO 95% 10 min'!M67 ->  | L26: ='CO 95% 10 min'!M82 -> 
A27: Ammonia | B27: Daily mean | C27: 15 mg/m3 | D27: ='NH3'!$O$19 -> 11 | E27: ='NH3'!$N$19 -> 0.9166666667 | F27: ='NH3'!$O$34 -> 6 | G27: ='NH3'!$N$34 -> 0.5 | H27: ='NH3'!$O$49 -> 0 | I27: ='NH3'!$N$49 ->  | J27: ='NH3'!$O$64 -> 0 | K27: ='NH3'!$N$64 ->  | L27: ='NH3'!$O$79 -> 0 | M27: ='NH3'!$N$79 -> 
A28: * = delete as appropriate, depending on whether your plant has half-hourly or 10-min CO ELVs
A29: Comments :

Sheet HCl
A1: =+'Cover Page'!$B$29 -> Annual Performance Report 2024 | E1: =+'Cover Page'!$B$33 -> SUEZ R&R Wilton 11 EfW
A3: Monitoring of Hydrogen Chloride emissions | D3: Whole Installation | G3: See Notes in Cell Q3 | J3: =+A3 -> Monitoring of Hydrogen Chloride emissions | N3: Per Combustion Line | Q3: Notes:
Q4: User to add logic to complete Whole installation, Table A5:G18. From the data in Per Combustion Line, Table J6:O79, subject to No. of lines installed
A5: =+'Cover Page'!C39 -> 2024 | B5: 1/2 Hourly Reference Periods | E5: Daily Reference Periods
A6: mg/Nm3 | B6: 1/2 hourly HCl ELV | C6: Monthly mean of half-hourly averages | D6: Highest half- hourly average | E6: Daily HCl ELV | F6: Monthly mean of daily averages | G6: Highest daily average | J6: =+A5 -> 2024 | K6: mg/Nm3 | L6: Monthly mean of half-hourly averages | M6: Highest half- hourly average | N6: Monthly mean of daily averages | O6: Highest daily average
A7: Jan | B7: 60 | C7: =AVERAGE(L7,L22,L37,L52,L67) -> 4.5 | D7: =MAX(M7,M22,M37,M52,M67) -> 12 | E7: 8 | F7: =AVERAGE(N7,N22,N37,N52,N67) -> 4.5 | G7: =MAX(O7,O22,O37,O52,O67) -> 7 | J7: A1 | K7: Jan | L7: 3 | M7: 7 | N7: 3 | O7: 6
A8: Feb | B8: 60 | C8: =AVERAGE(L8,L23,L38,L53,L68) -> 4.5 | D8: =MAX(M8,M23,M38,M53,M68) -> 11 | E8: 8 | F8: =AVERAGE(N8,N23,N38,N53,N68) -> 4.5 | G8: =MAX(O8,O23,O38,O53,O68) -> 7 | K8: Feb | L8: 3 | M8: 7 | N8: 3 | O8: 4
A9: Mar | B9: 60 | C9: 4 | D9: 12 | E9: 8 | F9: 4 | G9: 7 | K9: Mar | L9: 3 | M9: 6 | N9: 3 | O9: 4 | Q9: Whole Installation table A5:G18:
A10: Apr | B10: 60 | C10: 4 | D10: 10 | E10: 8 | F10: 4 | G10: 5 | K10: Apr | L10: 4 | M10: 6 | N10: 4 | O10: 4 | Q10: Mean: for 1/2 hourly and daily periods calculate mean of values across all operational combustion lines for the month
A11: May | B11: 60 | C11: 2.5 | D11: 10 | E11: 8 | F11: 2.5 | G11: 7 | K11: May | L11: 2 | M11: 2 | N11: 2 | O11: 2
A12: Jun | B12: 60 | C12: 2.5 | D12: 8 | E12: 8 | F12: 2.5 | G12: 8 | K12: Jun | L12: 2 | M12: 4 | N12: 2 | O12: 3
A13: Jul | B13: 60 | C13: 4.5 | D13: 24 | E13: 8 | F13: 4.5 | G13: 8 | K13: Jul | L13: 4 | M13: 9 | N13: 4 | O13: 6 | Q13: Maximum: for 1/2 hourly and daily periods use the highest value across all operational combustion lines for the month
A14: Aug | B14: 60 | C14: 5.5 | D14: 10 | E14: 8 | F14: 5.5 | G14: 7 | K14: Aug | L14: 5 | M14: 10 | N14: 5 | O14: 6
A15: Sep | B15: 60 | C15: 4.5 | D15: 16 | E15: 8 | F15: 4.5 | G15: 7 | K15: Sep | L15: 3 | M15: 8 | N15: 3 | O15: 6
A16: Oct | B16: 60 | C16: 6 | D16: 38 | E16: 8 | F16: 6 | G16: 7 | K16: Oct | L16: 5 | M16: 38 | N16: 5 | O16: 7
A17: Nov | B17: 60 | C17: 4 | D17: 11 | E17: 8 | F17: 4 | G17: 7 | K17: Nov | L17: 3 | M17: 8 | N17: 3 | O17: 5
A18: Dec | B18: 60 | C18: 6.5 | D18: 20 | E18: 8 | F18: 6.5 | G18: 7 | K18: Dec | L18: 6 | M18: 12 | N18: 6 | O18: 7
K19: Annual | L19: =AVERAGE(L7:L18) -> 3.583333333 | M19: =MAX(M7:M18) -> 38 | N19: =AVERAGE(N7:N18) -> 3.583333333 | O19: =MAX(O7:O18) -> 7
J21: =+A5 -> 2024 | K21: mg/Nm3 | L21: Monthly mean of half-hourly averages | M21: Highest half- hourly average | N21: Monthly mean of daily averages | O21: Highest daily average
J22: A2 | K22: Jan | L22: 6 | M22: 12 | N22: 6 | O22: 7
K23: Feb | L23: 6 | M23: 11 | N23: 6 | O23: 7
K24: Mar | L24: 5 | M24: 12 | N24: 5 | O24: 7
K25: Apr | L25: 4 | M25: 10 | N25: 4 | O25: 5
K26: May | L26: 3 | M26: 10 | N26: 3 | O26: 7
K27: Jun | L27: 3 | M27: 8 | N27: 3 | O27: 8
K28: Jul | L28: 5 | M28: 24 | N28: 5 | O28: 8
K29: Aug | L29: 6 | M29: 10 | N29: 6 | O29: 7
K30: Sep | L30: 6 | M30: 16 | N30: 6 | O30: 7
K31: Oct | L31: 7 | M31: 32 | N31: 7 | O31: 7
K32: Nov | L32: 5 | M32: 11 | N32: 5 | O32: 7
K33: Dec | L33: 7 | M33: 20 | N33: 7 | O33: 7
K34: Annual | L34: =AVERAGE(L22:L33) -> 5.25 | M34: =MAX(M22:M33) -> 32 | N34: =AVERAGE(N22:N33) -> 5.25 | O34: =MAX(O22:O33) -> 8
J36: =+A5 -> 2024 | K36: mg/Nm3 | L36: Monthly mean of half-hourly averages | M36: Highest half- hourly average | N36: Monthly mean of daily averages | O36: Highest daily average
J37: A3 | K37: Jan
K38: Feb
K39: Mar
K40: Apr
K41: May
K42: Jun
K43: Jul
K44: Aug
K45: Sep
K46: Oct
K47: Nov
A48: Comments : | K48: Dec
K49: Annual | L49: =AVERAGE(L37:L48) ->  | M49: =MAX(M37:M48) -> 0 | N49: =AVERAGE(N37:N48) ->  | O49: =MAX(O37:O48) -> 0
J51: =+A5 -> 2024 | K51: mg/Nm3 | L51: Monthly mean of half-hourly averages | M51: Highest half- hourly average | N51: Monthly mean of daily averages | O51: Highest daily average
J52: A4 | K52: Jan
K53: Feb
K54: Mar
K55: Apr
K56: May
K57: Jun
K58: Jul
K59: Aug
K60: Sep
K61: Oct
K62: Nov
K63: Dec
K64: Annual | L64: =AVERAGE(L52:L63) ->  | M64: =MAX(M52:M63) -> 0 | N64: =AVERAGE(N52:N63) ->  | O64: =MAX(O52:O63) -> 0
J66: =+A5 -> 2024 | K66: mg/Nm3 | L66: Monthly mean of half-hourly averages | M66: Highest half- hourly average | N66: Monthly mean of daily averages | O66: Highest daily average
J67: A5 | K67: Jan
K68: Feb
K69: Mar
K70: Apr
K71: May
K72: Jun
K73: Jul
K74: Aug
K75: Sep
K76: Oct
K77: Nov
K78: Dec
K79: Annual | L79: =AVERAGE(L67:L78) ->  | M79: =MAX(M67:M78) -> 0 | N79: =AVERAGE(N67:N78) ->  | O79: =MAX(O67:O78) -> 0

Sheet SO2
A1: =+'Cover Page'!$B$29 -> Annual Performance Report 2024 | E1: =+'Cover Page'!$B$33 -> SUEZ R&R Wilton 11 EfW
A3: Monitoring of Sulphur dioxide emissions | D3: Whole Installation | G3: See Notes in Cell Q3 | J3: =+A3 -> Monitoring of Sulphur dioxide emissions | N3: Per Combustion Line | Q3: Notes:
Q4: User to add logic to complete Whole installation, Table A5:G18. From the data in Per Combustion Line, Table J6:O79, subject to No. of lines installed
A5: =+'Cover Page'!C39 -> 2024 | B5: 1/2 Hourly Reference Periods | E5: Daily Reference Periods
A6: mg/Nm3 | B6: 1/2 hourly SO2 ELV | C6: Monthly mean of half-hourly averages | D6: Highest half- hourly average | E6: Daily SO2 ELV | F6: Monthly mean of daily averages | G6: Highest daily average | J6: =+A5 -> 2024 | K6: mg/Nm3 | L6: Monthly mean of half-hourly averages | M6: Highest half- hourly average | N6: Monthly mean of daily averages | O6: Highest daily average
A7: Jan | B7: 200 | C7: =AVERAGE(L7,L22,L37,L52,L67) -> 27 | D7: =MAX(M7,M22,M37,M52,M67) -> 49 | E7: 40 | F7: =AVERAGE(N7,N22,N37,N52,N67) -> 27 | G7: =MAX(O7,O22,O37,O52,O67) -> 36 | J7: A1 | K7: Jan | L7: 26 | M7: 47 | N7: 26 | O7: 36
A8: Feb | B8: 200 | C8: =AVERAGE(L8,L23,L38,L53,L68) -> 28.5 | D8: =MAX(M8,M23,M38,M53,M68) -> 79 | E8: 40 | F8: =AVERAGE(N8,N23,N38,N53,N68) -> 28.5 | G8: =MAX(O8,O23,O38,O53,O68) -> 36 | K8: Feb | L8: 28 | M8: 63 | N8: 28 | O8: 36
A9: Mar | B9: 200 | C9: 30.5 | D9: 57 | E9: 40 | F9: 30.5 | G9: 37 | K9: Mar | L9: 28 | M9: 46 | N9: 28 | O9: 35 | Q9: Whole Installation table A5:G18:
A10: Apr | B10: 200 | C10: 26.5 | D10: 45 | E10: 40 | F10: 26.5 | G10: 33 | K10: Apr | L10: 25 | M10: 33 | N10: 25 | O10: 25 | Q10: Mean: for 1/2 hourly and daily periods calculate mean of values across all operational combustion lines for the month
A11: May | B11: 200 | C11: 20.5 | D11: 84 | E11: 40 | F11: 20.5 | G11: 38 | K11: May | L11: 8 | M11: 11 | N11: 8 | O11: 8
A12: Jun | B12: 200 | C12: 32.5 | D12: 81 | E12: 40 | F12: 32.5 | G12: 36 | K12: Jun | L12: 30 | M12: 65 | N12: 30 | O12: 36
A13: Jul | B13: 200 | C13: 30 | D13: 87 | E13: 40 | F13: 30 | G13: 38 | K13: Jul | L13: 28 | M13: 87 | N13: 28 | O13: 38 | Q13: Maximum: for 1/2 hourly and daily periods use the highest value across all operational combustion lines for the month
A14: Aug | B14: 200 | C14: 22 | D14: 65 | E14: 40 | F14: 22 | G14: 35 | K14: Aug | L14: 16 | M14: 65 | N14: 16 | O14: 31
A15: Sep | B15: 200 | C15: 12 | D15: 48 | E15: 40 | F15: 12 | G15: 35 | K15: Sep | L15: 18 | M15: 48 | N15: 18 | O15: 35
A16: Oct | B16: 200 | C16: 22.5 | D16: 96 | E16: 40 | F16: 22.5 | G16: 33 | K16: Oct | L16: 19 | M16: 96 | N16: 19 | O16: 28
A17: Nov | B17: 200 | C17: 18 | D17: 59 | E17: 40 | F17: 18 | G17: 31 | K17: Nov | L17: 19 | M17: 49 | N17: 19 | O17: 31
A18: Dec | B18: 200 | C18: 20 | D18: 70 | E18: 40 | F18: 20 | G18: 25 | K18: Dec | L18: 19 | M18: 48 | N18: 19 | O18: 24
K19: Annual | L19: =AVERAGE(L7:L18) -> 22 | M19: =MAX(M7:M18) -> 96 | N19: =AVERAGE(N7:N18) -> 22 | O19: =MAX(O7:O18) -> 38
J21: =+A5 -> 2024 | K21: mg/Nm3 | L21: Monthly mean of half-hourly averages | M21: Highest half- hourly average | N21: Monthly mean of daily averages | O21: Highest daily average
J22: A2 | K22: Jan | L22: 28 | M22: 49 | N22: 28 | O22: 36
K23: Feb | L23: 29 | M23: 79 | N23: 29 | O23: 36
K24: Mar | L24: 33 | M24: 57 | N24: 33 | O24: 37
K25: Apr | L25: 28 | M25: 45 | N25: 28 | O25: 33
K26: May | L26: 33 | M26: 84 | N26: 33 | O26: 38
K27: Jun | L27: 35 | M27: 81 | N27: 35 | O27: 36
K28: Jul | L28: 32 | M28: 72 | N28: 32 | O28: 36
K29: Aug | L29: 28 | M29: 51 | N29: 28 | O29: 35
K30: Sep | L30: 6 | M30: 16 | N30: 6 | O30: 7
K31: Oct | L31: 26 | M31: 86 | N31: 26 | O31: 33
K32: Nov | L32: 17 | M32: 59 | N32: 17 | O32: 25
K33: Dec | L33: 21 | M33: 70 | N33: 21 | O33: 25
K34: Annual | L34: =AVERAGE(L22:L33) -> 26.33333333 | M34: =MAX(M22:M33) -> 86 | N34: =AVERAGE(N22:N33) -> 26.33333333 | O34: =MAX(O22:O33) -> 38
J36: =+A5 -> 2024 | K36: mg/Nm3 | L36: Monthly mean of half-hourly averages | M36: Highest half- hourly average | N36: Monthly mean of daily averages | O36: Highest daily average
J37: A3 | K37: Jan
K38: Feb
K39: Mar
K40: Apr
K41: May
K42: Jun
K43: Jul
K44: Aug
K45: Sep
K46: Oct
K47: Nov
A48: Comments : | K48: Dec
K49: Annual | L49: =AVERAGE(L37:L48) ->  | M49: =MAX(M37:M48) -> 0 | N49: =AVERAGE(N37:N48) ->  | O49: =MAX(O37:O48) -> 0
J51: =+A5 -> 2024 | K51: mg/Nm3 | L51: Monthly mean of half-hourly averages | M51: Highest half- hourly average | N51: Monthly mean of daily averages | O51: Highest daily average
J52: A4 | K52: Jan
K53: Feb
K54: Mar
K55: Apr
K56: May
K57: Jun
K58: Jul
K59: Aug
K60: Sep
K61: Oct
K62: Nov
K63: Dec
K64: Annual | L64: =AVERAGE(L52:L63) ->  | M64: =MAX(M52:M63) -> 0 | N64: =AVERAGE(N52:N63) ->  | O64: =MAX(O52:O63) -> 0
J66: =+A5 -> 2024 | K66: mg/Nm3 | L66: Monthly mean of half-hourly averages | M66: Highest half- hourly average | N66: Monthly mean of daily averages | O66: Highest daily average
J67: A5 | K67: Jan
K68: Feb
K69: Mar
K70: Apr
K71: May
K72: Jun
K73: Jul
K74: Aug
K75: Sep
K76: Oct
K77: Nov
K78: Dec
K79: Annual | L79: =AVERAGE(L67:L78) ->  | M79: =MAX(M67:M78) -> 0 | N79: =AVERAGE(N67:N78) ->  | O79: =MAX(O67:O78) -> 0

Sheet NOx
A1: =+'Cover Page'!$B$29 -> Annual Performance Report 2024 | E1: =+'Cover Page'!$B$33 -> SUEZ R&R Wilton 11 EfW
A3: Monitoring of Oxides of Nitrogen emissions | D3: Whole Installation | G3: See Notes in Cell Q3 | J3: =+A3 -> Monitoring of Oxides of Nitrogen emissions | N3: Per Combustion Line | Q3: Notes:
Q4: User to add logic to complete Whole installation, Table A5:G18. From the data in Per Combustion Line, Table J6:O79, subject to No. of lines installed
A5: =+'Cover Page'!C39 -> 2024 | B5: 1/2 Hourly Reference Periods | E5: Daily Reference Periods
A6: mg/Nm3 | B6: 1/2 hourly NOx ELV | C6: Monthly mean of half-hourly averages | D6: Highest half- hourly average | E6: Daily NOx ELV | F6: Monthly mean of daily averages | G6: Highest daily average | J6: =+A5 -> 2024 | K6: mg/Nm3 | L6: Monthly mean of half-hourly averages | M6: Highest half- hourly average | N6: Monthly mean of daily averages | O6: Highest daily average
A7: Jan | B7: 400 | C7: =AVERAGE(L7,L22,L37,L52,L67) -> 148.5 | D7: =MAX(M7,M22,M37,M52,M67) -> 218 | E7: 180 | F7: =AVERAGE(N7,N22,N37,N52,N67) -> 148.5 | G7: =MAX(O7,O22,O37,O52,O67) -> 165 | J7: A1 | K7: Jan | L7: 156 | M7: 200 | N7: 156 | O7: 165
A8: Feb | B8: 400 | C8: =AVERAGE(L8,L23,L38,L53,L68) -> 140.5 | D8: =MAX(M8,M23,M38,M53,M68) -> 286 | E8: 180 | F8: =AVERAGE(N8,N23,N38,N53,N68) -> 140.5 | G8: =MAX(O8,O23,O38,O53,O68) -> 161 | K8: Feb | L8: 147 | M8: 286 | N8: 147 | O8: 156
A9: Mar | B9: 400 | C9: 143.5 | D9: 189 | E9: 180 | F9: 143.5 | G9: 156 | K9: Mar | L9: 155 | M9: 189 | N9: 155 | O9: 156 | Q9: Whole Installation table A5:G18:
A10: Apr | B10: 400 | C10: 132.5 | D10: 158 | E10: 180 | F10: 132.5 | G10: 142 | K10: Apr | L10: 142 | M10: 158 | N10: 142 | O10: 142 | Q10: Mean: for 1/2 hourly and daily periods calculate mean of values across all operational combustion lines for the month
A11: May | B11: 400 | C11: 138.5 | D11: 243 | E11: 180 | F11: 138.5 | G11: 179 | K11: May | L11: 133 | M11: 142 | N11: 133 | O11: 133
A12: Jun | B12: 400 | C12: 146 | D12: 237 | E12: 180 | F12: 146 | G12: 173 | K12: Jun | L12: 153 | M12: 237 | N12: 153 | O12: 173
A13: Jul | B13: 400 | C13: 150 | D13: 277 | E13: 180 | F13: 150 | G13: 176 | K13: Jul | L13: 156 | M13: 277 | N13: 156 | O13: 176 | Q13: Maximum: for 1/2 hourly and daily periods use the highest value across all operational combustion lines for the month
A14: Aug | B14: 400 | C14: 138 | D14: 277 | E14: 180 | F14: 138 | G14: 177 | K14: Aug | L14: 144 | M14: 277 | N14: 144 | O14: 177
A15: Sep | B15: 400 | C15: 142 | D15: 866 | E15: 180 | F15: 142 | G15: 222 | K15: Sep | L15: 153 | M15: 387 | N15: 153 | O15: 177
A16: Oct | B16: 400 | C16: 135.5 | D16: 276 | E16: 180 | F16: 135.5 | G16: 152 | K16: Oct | L16: 146 | M16: 276 | N16: 146 | O16: 152
A17: Nov | B17: 400 | C17: 149 | D17: 226 | E17: 180 | F17: 149 | G17: 174 | K17: Nov | L17: 159 | M17: 226 | N17: 159 | O17: 174
A18: Dec | B18: 400 | C18: 158 | D18: 264 | E18: 180 | F18: 158 | G18: 176 | K18: Dec | L18: 165 | M18: 264 | N18: 165 | O18: 176
K19: Annual | L19: =AVERAGE(L7:L18) -> 150.75 | M19: =MAX(M7:M18) -> 387 | N19: =AVERAGE(N7:N18) -> 150.75 | O19: =MAX(O7:O18) -> 177
J21: =+A5 -> 2024 | K21: mg/Nm3 | L21: Monthly mean of half-hourly averages | M21: Highest half- hourly average | N21: Monthly mean of daily averages | O21: Highest daily average
J22: A2 | K22: Jan | L22: 141 | M22: 218 | N22: 141 | O22: 150
K23: Feb | L23: 134 | M23: 244 | N23: 134 | O23: 161
K24: Mar | L24: 132 | M24: 177 | N24: 132 | O24: 134
K25: Apr | L25: 123 | M25: 155 | N25: 123 | O25: 129
K26: May | L26: 144 | M26: 243 | N26: 144 | O26: 179
K27: Jun | L27: 139 | M27: 210 | N27: 139 | O27: 161
K28: Jul | L28: 144 | M28: 247 | N28: 144 | O28: 171
K29: Aug | L29: 132 | M29: 259 | N29: 132 | O29: 164
K30: Sep | L30: 131 | M30: 866 | N30: 131 | O30: 222
K31: Oct | L31: 125 | M31: 260 | N31: 125 | O31: 137
K32: Nov | L32: 139 | M32: 183 | N32: 139 | O32: 157
K33: Dec | L33: 151 | M33: 221 | N33: 151 | O33: 162
K34: Annual | L34: =AVERAGE(L22:L33) -> 136.25 | M34: =MAX(M22:M33) -> 866 | N34: =AVERAGE(N22:N33) -> 136.25 | O34: =MAX(O22:O33) -> 222
J36: =+A5 -> 2024 | K36: mg/Nm3 | L36: Monthly mean of half-hourly averages | M36: Highest half- hourly average | N36: Monthly mean of daily averages | O36: Highest daily average
J37: A3 | K37: Jan
K38: Feb
K39: Mar
K40: Apr
K41: May
K42: Jun
K43: Jul
K44: Aug
K45: Sep
K46: Oct
K47: Nov
A48: Comments : | K48: Dec
K49: Annual | L49: =AVERAGE(L37:L48) ->  | M49: =MAX(M37:M48) -> 0 | N49: =AVERAGE(N37:N48) ->  | O49: =MAX(O37:O48) -> 0
J51: =+A5 -> 2024 | K51: mg/Nm3 | L51: Monthly mean of half-hourly averages | M51: Highest half- hourly average | N51: Monthly mean of daily averages | O51: Highest daily average
J52: A4 | K52: Jan
K53: Feb
K54: Mar
K55: Apr
K56: May
K57: Jun
K58: Jul
K59: Aug
K60: Sep
K61: Oct
K62: Nov
K63: Dec
K64: Annual | L64: =AVERAGE(L52:L63) ->  | M64: =MAX(M52:M63) -> 0 | N64: =AVERAGE(N52:N63) ->  | O64: =MAX(O52:O63) -> 0
J66: =+A5 -> 2024 | K66: mg/Nm3 | L66: Monthly mean of half-hourly averages | M66: Highest half- hourly average | N66: Monthly mean of daily averages | O66: Highest daily average
J67: A5 | K67: Jan
K68: Feb
K69: Mar
K70: Apr
K71: May
K72: Jun
K73: Jul
K74: Aug
K75: Sep
K76: Oct
K77: Nov
K78: Dec
K79: Annual | L79: =AVERAGE(L67:L78) ->  | M79: =MAX(M67:M78) -> 0 | N79: =AVERAGE(N67:N78) ->  | O79: =MAX(O67:O78) -> 0

Sheet TOC
A1: =+'Cover Page'!$B$29 -> Annual Performance Report 2024 | E1: =+'Cover Page'!$B$33 -> SUEZ R&R Wilton 11 EfW
A3: Monitoring of Total organic carbon emissions | D3: Whole Installation | G3: See Notes in Cell Q3 | J3: =+A3 -> Monitoring of Total organic carbon emissions | N3: Per Combustion Line | Q3: Notes:
Q4: User to add logic to complete Whole installation, Table A5:G18. From the data in Per Combustion Line, Table J6:O79, subject to No. of lines installed
A5: =+'Cover Page'!C39 -> 2024 | B5: 1/2 Hourly Reference Periods | E5: Daily Reference Periods
A6: mg/Nm3 | B6: 1/2 hourly TOC ELV | C6: Monthly mean of half-hourly averages | D6: Highest half- hourly average | E6: Daily TOC ELV | F6: Monthly mean of daily averages | G6: Highest daily average | J6: =+A5 -> 2024 | K6: mg/Nm3 | L6: Monthly mean of half-hourly averages | M6: Highest half- hourly average | N6: Monthly mean of daily averages | O6: Highest daily average
A7: Jan | B7: 20 | C7: =AVERAGE(L7,L22,L37,L52,L67) -> 0.45 | D7: =MAX(M7,M22,M37,M52,M67) -> 13 | E7: 10 | F7: =AVERAGE(N7,N22,N37,N52,N67) -> 0.45 | G7: =MAX(O7,O22,O37,O52,O67) -> 0.9 | J7: A1 | K7: Jan | L7: 0.3 | M7: 0.5 | N7: 0.3 | O7: 0.3
A8: Feb | B8: 20 | C8: =AVERAGE(L8,L23,L38,L53,L68) -> 0.45 | D8: =MAX(M8,M23,M38,M53,M68) -> 1.3 | E8: 10 | F8: =AVERAGE(N8,N23,N38,N53,N68) -> 0.45 | G8: =MAX(O8,O23,O38,O53,O68) -> 0.8 | K8: Feb | L8: 0.3 | M8: 0.6 | N8: 0.3 | O8: 0.3
A9: Mar | B9: 20 | C9: 0.45 | D9: 1.2 | E9: 10 | F9: 0.45 | G9: 0.8 | K9: Mar | L9: 0.3 | M9: 1.2 | N9: 0.3 | O9: 0.3 | Q9: Whole Installation table A5:G18:
A10: Apr | B10: 20 | C10: 0.75 | D10: 2 | E10: 10 | F10: 0.75 | G10: 1.3 | K10: Apr | L10: 0.4 | M10: 0.5 | N10: 0.4 | O10: 0.4 | Q10: Mean: for 1/2 hourly and daily periods calculate mean of values across all operational combustion lines for the month
A11: May | B11: 20 | C11: 0.5 | D11: 5.1 | E11: 10 | F11: 0.5 | G11: 1.5 | K11: May | L11: 0 | M11: 0 | N11: 0 | O11: 0
A12: Jun | B12: 20 | C12: 0.65 | D12: 5.2 | E12: 10 | F12: 0.65 | G12: 1.4 | K12: Jun | L12: 0.3 | M12: 5.2 | N12: 0.3 | O12: 0.7
A13: Jul | B13: 20 | C13: 0.65 | D13: 1.8 | E13: 10 | F13: 0.65 | G13: 1.5 | K13: Jul | L13: 0.2 | M13: 1.2 | N13: 0.2 | O13: 0.4 | Q13: Maximum: for 1/2 hourly and daily periods use the highest value across all operational combustion lines for the month
A14: Aug | B14: 20 | C14: 0.45 | D14: 9 | E14: 10 | F14: 0.45 | G14: 1.2 | K14: Aug | L14: 0.3 | M14: 9 | N14: 0.3 | O14: 0.5
A15: Sep | B15: 20 | C15: 0.45 | D15: 2.4 | E15: 10 | F15: 0.45 | G15: 1 | K15: Sep | L15: 0.3 | M15: 0.7 | N15: 0.3 | O15: 0.5
A16: Oct | B16: 20 | C16: 1.35 | D16: 267 | E16: 10 | F16: 1.35 | G16: 0.6 | K16: Oct | L16: 2.1 | M16: 267 | N16: 2.1 | O16: 0.5
A17: Nov | B17: 20 | C17: 0.45 | D17: 1.2 | E17: 10 | F17: 0.45 | G17: 0.6 | K17: Nov | L17: 0.3 | M17: 1 | N17: 0.3 | O17: 0.4
A18: Dec | B18: 20 | C18: 0.45 | D18: 2.7 | E18: 10 | F18: 0.45 | G18: 1.4 | K18: Dec | L18: 0.3 | M18: 0.5 | N18: 0.3 | O18: 0.3
K19: Annual | L19: =AVERAGE(L7:L18) -> 0.425 | M19: =MAX(M7:M18) -> 267 | N19: =AVERAGE(N7:N18) -> 0.425 | O19: =MAX(O7:O18) -> 0.7
J21: =+A5 -> 2024 | K21: mg/Nm3 | L21: Monthly mean of half-hourly averages | M21: Highest half- hourly average | N21: Monthly mean of daily averages | O21: Highest daily average
J22: A2 | K22: Jan | L22: 0.6 | M22: 13 | N22: 0.6 | O22: 0.9
K23: Feb | L23: 0.6 | M23: 1.3 | N23: 0.6 | O23: 0.8
K24: Mar | L24: 0.6 | M24: 1.2 | N24: 0.6 | O24: 0.8
K25: Apr | L25: 1.1 | M25: 2 | N25: 1.1 | O25: 1.3
K26: May | L26: 1 | M26: 5.1 | N26: 1 | O26: 1.5
K27: Jun | L27: 1 | M27: 2.1 | N27: 1 | O27: 1.4
K28: Jul | L28: 1.1 | M28: 1.8 | N28: 1.1 | O28: 1.5
K29: Aug | L29: 0.6 | M29: 1.8 | N29: 0.6 | O29: 1.2
K30: Sep | L30: 0.6 | M30: 2.4 | N30: 0.6 | O30: 1
K31: Oct | L31: 0.6 | M31: 3.2 | N31: 0.6 | O31: 0.6
K32: Nov | L32: 0.6 | M32: 1.2 | N32: 0.6 | O32: 0.6
K33: Dec | L33: 0.6 | M33: 2.7 | N33: 0.6 | O33: 1.4
K34: Annual | L34: =AVERAGE(L22:L33) -> 0.75 | M34: =MAX(M22:M33) -> 13 | N34: =AVERAGE(N22:N33) -> 0.75 | O34: =MAX(O22:O33) -> 1.5
J36: =+A5 -> 2024 | K36: mg/Nm3 | L36: Monthly mean of half-hourly averages | M36: Highest half- hourly average | N36: Monthly mean of daily averages | O36: Highest daily average
J37: A3 | K37: Jan
K38: Feb
K39: Mar
K40: Apr
K41: May
K42: Jun
K43: Jul
K44: Aug
K45: Sep
K46: Oct
K47: Nov
A48: Comments : | K48: Dec
K49: Annual | L49: =AVERAGE(L37:L48) ->  | M49: =MAX(M37:M48) -> 0 | N49: =AVERAGE(N37:N48) ->  | O49: =MAX(O37:O48) -> 0
J51: =+A5 -> 2024 | K51: mg/Nm3 | L51: Monthly mean of half-hourly averages | M51: Highest half- hourly average | N51: Monthly mean of daily averages | O51: Highest daily average
J52: A4 | K52: Jan
K53: Feb
K54: Mar
K55: Apr
K56: May
K57: Jun
K58: Jul
K59: Aug
K60: Sep
K61: Oct
K62: Nov
K63: Dec
K64: Annual | L64: =AVERAGE(L52:L63) ->  | M64: =MAX(M52:M63) -> 0 | N64: =AVERAGE(N52:N63) ->  | O64: =MAX(O52:O63) -> 0
J66: =+A5 -> 2024 | K66: mg/Nm3 | L66: Monthly mean of half-hourly averages | M66: Highest half- hourly average | N66: Monthly mean of daily averages | O66: Highest daily average
J67: A5 | K67: Jan
K68: Feb
K69: Mar
K70: Apr
K71: May
K72: Jun
K73: Jul
K74: Aug
K75: Sep
K76: Oct
K77: Nov
K78: Dec
K79: Annual | L79: =AVERAGE(L67:L78) ->  | M79: =MAX(M67:M78) -> 0 | N79: =AVERAGE(N67:N78) ->  | O79: =MAX(O67:O78) -> 0

Sheet Particulates
A1: =+'Cover Page'!$B$29 -> Annual Performance Report 2024 | E1: =+'Cover Page'!$B$33 -> SUEZ R&R Wilton 11 EfW
A3: Monitoring of Particulate matter emissions | D3: Whole Installation | G3: See Notes in Cell Q3 | J3: =+A3 -> Monitoring of Particulate matter emissions | N3: Per Combustion Line | Q3: Notes:
A5: =+'Cover Page'!C39 -> 2024 | B5: 1/2 Hourly Reference Periods | E5: Daily Reference Periods | Q5: User to add logic to complete Whole installation, Table A5:G18. From the data in Per Combustion Line, Table J6:O79, subject to No. of lines installed
A6: mg/Nm3 | B6: 1/2 hourly PM ELV | C6: Monthly mean of half-hourly averages | D6: Highest half- hourly average | E6: Daily PM ELV | F6: Monthly mean of daily averages | G6: Highest daily average | J6: =+A5 -> 2024 | K6: mg/Nm3 | L6: Monthly mean of half-hourly averages | M6: Highest half- hourly average | N6: Monthly mean of daily averages | O6: Highest daily average
A7: Jan | B7: 30 | C7: =AVERAGE(L7,L22,L37,L52,L67) -> 0.65 | D7: =MAX(M7,M22,M37,M52,M67) -> 1.4 | E7: 5 | F7: =AVERAGE(N7,N22,N37,N52,N67) -> 0.65 | G7: =MAX(O7,O22,O37,O52,O67) -> 0.9 | J7: A1 | K7: Jan | L7: 0.8 | M7: 1.4 | N7: 0.8 | O7: 0.9
A8: Feb | B8: 30 | C8: =AVERAGE(L8,L23,L38,L53,L68) -> 0.65 | D8: =MAX(M8,M23,M38,M53,M68) -> 1.3 | E8: 5 | F8: =AVERAGE(N8,N23,N38,N53,N68) -> 0.65 | G8: =MAX(O8,O23,O38,O53,O68) -> 0.9 | K8: Feb | L8: 0.8 | M8: 1.3 | N8: 0.8 | O8: 0.9
A9: Mar | B9: 30 | C9: 0.6 | D9: 1 | E9: 5 | F9: 0.6 | G9: 0.9 | K9: Mar | L9: 0.8 | M9: 1 | N9: 0.8 | O9: 0.9
A10: Apr | B10: 30 | C10: 0.75 | D10: 1.3 | E10: 5 | F10: 0.75 | G10: 1 | K10: Apr | L10: 1 | M10: 1.3 | N10: 1 | O10: 1 | Q10: Whole Installation table A5:G18:
A11: May | B11: 30 | C11: 0.65 | D11: 4.3 | E11: 5 | F11: 0.65 | G11: 0.9 | K11: May | L11: 0.9 | M11: 1 | N11: 0.9 | O11: 0.9 | Q11: Mean: for 1/2 hourly and daily periods calculate mean of values across all operational combustion lines for the month
A12: Jun | B12: 30 | C12: 0.55 | D12: 4.2 | E12: 5 | F12: 0.55 | G12: 1.6 | K12: Jun | L12: 0.7 | M12: 4.2 | N12: 0.7 | O12: 1.6
A13: Jul | B13: 30 | C13: 0.55 | D13: 1.3 | E13: 5 | F13: 0.55 | G13: 0.7 | K13: Jul | L13: 0.7 | M13: 1.3 | N13: 0.7 | O13: 0.7
A14: Aug | B14: 30 | C14: 0.55 | D14: 4.3 | E14: 5 | F14: 0.55 | G14: 0.8 | K14: Aug | L14: 0.7 | M14: 1.5 | N14: 0.7 | O14: 0.8 | Q14: Maximum: for 1/2 hourly and daily periods use the highest value across all operational combustion lines for the month
A15: Sep | B15: 30 | C15: 0.7 | D15: 4.3 | E15: 5 | F15: 0.7 | G15: 1.1 | K15: Sep | L15: 0.9 | M15: 1.3 | N15: 0.9 | O15: 1.1
A16: Oct | B16: 30 | C16: 0.6 | D16: 7.1 | E16: 5 | F16: 0.6 | G16: 2 | K16: Oct | L16: 0.8 | M16: 7.1 | N16: 0.8 | O16: 2
A17: Nov | B17: 30 | C17: 0.55 | D17: 0.9 | E17: 5 | F17: 0.55 | G17: 0.8 | K17: Nov | L17: 0.7 | M17: 0.9 | N17: 0.7 | O17: 0.8
A18: Dec | B18: 30 | C18: 0.6 | D18: 1.1 | E18: 5 | F18: 0.6 | G18: 0.8 | K18: Dec | L18: 0.8 | M18: 1 | N18: 0.8 | O18: 0.8
K19: Annual | L19: =AVERAGE(L7:L18) -> 0.8 | M19: =MAX(M7:M18) -> 7.1 | N19: =AVERAGE(N7:N18) -> 0.8 | O19: =MAX(O7:O18) -> 2
J21: =+A5 -> 2024 | K21: mg/Nm3 | L21: Monthly mean of half-hourly averages | M21: Highest half- hourly average | N21: Monthly mean of daily averages | O21: Highest daily average
J22: A2 | K22: Jan | L22: 0.5 | M22: 0.6 | N22: 0.5 | O22: 0.5
K23: Feb | L23: 0.5 | M23: 0.7 | N23: 0.5 | O23: 0.5
K24: Mar | L24: 0.4 | M24: 0.6 | N24: 0.4 | O24: 0.5
K25: Apr | L25: 0.5 | M25: 0.9 | N25: 0.5 | O25: 0.6
K26: May | L26: 0.4 | M26: 4.3 | N26: 0.4 | O26: 0.8
K27: Jun | L27: 0.4 | M27: 0.6 | N27: 0.4 | O27: 0.4
K28: Jul | L28: 0.4 | M28: 1.2 | N28: 0.4 | O28: 0.5
K29: Aug | L29: 0.4 | M29: 4.3 | N29: 0.4 | O29: 0.6
K30: Sep | L30: 0.5 | M30: 4.3 | N30: 0.5 | O30: 0.8
K31: Oct | L31: 0.4 | M31: 3.7 | N31: 0.4 | O31: 0.5
K32: Nov | L32: 0.4 | M32: 0.6 | N32: 0.4 | O32: 0.5
K33: Dec | L33: 0.4 | M33: 1.1 | N33: 0.4 | O33: 0.5
K34: Annual | L34: =AVERAGE(L22:L33) -> 0.4333333333 | M34: =MAX(M22:M33) -> 4.3 | N34: =AVERAGE(N22:N33) -> 0.4333333333 | O34: =MAX(O22:O33) -> 0.8
J36: =+A5 -> 2024 | K36: mg/Nm3 | L36: Monthly mean of half-hourly averages | M36: Highest half- hourly average | N36: Monthly mean of daily averages | O36: Highest daily average
J37: A3 | K37: Jan
K38: Feb
K39: Mar
K40: Apr
K41: May
K42: Jun
K43: Jul
K44: Aug
K45: Sep
K46: Oct
K47: Nov
A48: Comments : | K48: Dec
K49: Annual | L49: =AVERAGE(L37:L48) ->  | M49: =MAX(M37:M48) -> 0 | N49: =AVERAGE(N37:N48) ->  | O49: =MAX(O37:O48) -> 0
J51: =+A5 -> 2024 | K51: mg/Nm3 | L51: Monthly mean of half-hourly averages | M51: Highest half- hourly average | N51: Monthly mean of daily averages | O51: Highest daily average
J52: A4 | K52: Jan
K53: Feb
K54: Mar
K55: Apr
K56: May
K57: Jun
K58: Jul
K59: Aug
K60: Sep
K61: Oct
K62: Nov
K63: Dec
K64: Annual | L64: =AVERAGE(L52:L63) ->  | M64: =MAX(M52:M63) -> 0 | N64: =AVERAGE(N52:N63) ->  | O64: =MAX(O52:O63) -> 0
J66: =+A5 -> 2024 | K66: mg/Nm3 | L66: Monthly mean of half-hourly averages | M66: Highest half- hourly average | N66: Monthly mean of daily averages | O66: Highest daily average
J67: A5 | K67: Jan
K68: Feb
K69: Mar
K70: Apr
K71: May
K72: Jun
K73: Jul
K74: Aug
K75: Sep
K76: Oct
K77: Nov
K78: Dec
K79: Annual | L79: =AVERAGE(L67:L78) ->  | M79: =MAX(M67:M78) -> 0 | N79: =AVERAGE(N67:N78) ->  | O79: =MAX(O67:O78) -> 0

Sheet CO 0.5 hourly
A1: =+'Cover Page'!$B$29 -> Annual Performance Report 2024 | E1: =+'Cover Page'!$B$33 -> SUEZ R&R Wilton 11 EfW
A3: Monitoring of Carbon Monoxide (half hourly) | D3: Whole Installation | G3: See Notes in Cell Q3 | J3: =+A3 -> Monitoring of Carbon Monoxide (half hourly) | N3: Per Combustion Line | Q3: Notes:
A5: Please complete this tab for your plant if you have 1/2 hourly CO ELVs; otherwise, leave it blank and complete the CO 95% 10 min tab
Q7: User to add logic to complete Whole installation, Table A5:G18. From the data in Per Combustion Line, Table J6:O79, subject to No. of lines installed
A8: =+'Cover Page'!C39 -> 2024 | B8: 1/2 Hourly Reference Periods | E8: Daily Reference Periods
A9: mg/Nm3 | B9: 1/2 hourly CO ELV | C9: Monthly mean of half-hourly averages | D9: Highest half- hourly average | E9: Daily CO ELV | F9: Monthly mean of daily averages | G9: Highest daily average | J9: =+A8 -> 2024 | K9: mg/Nm3 | L9: Monthly mean of half-hourly averages | M9: Highest half- hourly average | N9: Monthly mean of daily averages | O9: Highest daily average
A10: Jan | B10: 100 | E10: 50 | J10: A1 | K10: Jan
A11: Feb | B11: =+B10 -> 100 | E11: =+E10 -> 50 | K11: Feb
A12: Mar | B12: =+B11 -> 100 | E12: =+E11 -> 50 | K12: Mar | Q12: Whole Installation table A5:G18:
A13: Apr | B13: 100 | E13: 50 | K13: Apr | Q13: Mean: for 1/2 hourly and daily periods calculate mean of values across all operational combustion lines for the month
A14: May | B14: 100 | E14: 50 | K14: May
A15: Jun | B15: 100 | E15: 50 | K15: Jun
A16: Jul | B16: 100 | E16: 50 | K16: Jul | Q16: Maximum: for 1/2 hourly and daily periods use the highest value across all operational combustion lines for the month
A17: Aug | B17: 100 | E17: 50 | K17: Aug
A18: Sep | B18: 100 | E18: 50 | K18: Sep
A19: Oct | B19: 100 | E19: 50 | K19: Oct
A20: Nov | B20: 100 | E20: 50 | K20: Nov
A21: Dec | B21: 100 | E21: 50 | K21: Dec
K22: Annual | L22: =AVERAGE(L10:L21) ->  | M22: =MAX(M10:M21) -> 0 | N22: =AVERAGE(N10:N21) ->  | O22: =MAX(O10:O21) -> 0
J24: =+A8 -> 2024 | K24: mg/Nm3 | L24: Monthly mean of half-hourly averages | M24: Highest half- hourly average | N24: Monthly mean of daily averages | O24: Highest daily average
J25: A2 | K25: Jan
K26: Feb
K27: Mar
K28: Apr
K29: May
K30: Jun
K31: Jul
K32: Aug
K33: Sep
K34: Oct
K35: Nov
K36: Dec
K37: Annual | L37: =AVERAGE(L25:L36) ->  | M37: =MAX(M25:M36) -> 0 | N37: =AVERAGE(N25:N36) ->  | O37: =MAX(O25:O36) -> 0
J39: =+A8 -> 2024 | K39: mg/Nm3 | L39: Monthly mean of half-hourly averages | M39: Highest half- hourly average | N39: Monthly mean of daily averages | O39: Highest daily average
J40: A3 | K40: Jan
K41: Feb
K42: Mar
K43: Apr
K44: May
K45: Jun
K46: Jul
K47: Aug
K48: Sep
K49: Oct
K50: Nov
A51: Comments : | K51: Dec
K52: Annual | L52: =AVERAGE(L40:L51) ->  | M52: =MAX(M40:M51) -> 0 | N52: =AVERAGE(N40:N51) ->  | O52: =MAX(O40:O51) -> 0
J54: =+A8 -> 2024 | K54: mg/Nm3 | L54: Monthly mean of half-hourly averages | M54: Highest half- hourly average | N54: Monthly mean of daily averages | O54: Highest daily average
J55: A4 | K55: Jan
K56: Feb
K57: Mar
K58: Apr
K59: May
K60: Jun
K61: Jul
K62: Aug
K63: Sep
K64: Oct
K65: Nov
K66: Dec
K67: Annual | L67: =AVERAGE(L55:L66) ->  | M67: =MAX(M55:M66) -> 0 | N67: =AVERAGE(N55:N66) ->  | O67: =MAX(O55:O66) -> 0
J69: =+A8 -> 2024 | K69: mg/Nm3 | L69: Monthly mean of half-hourly averages | M69: Highest half- hourly average | N69: Monthly mean of daily averages | O69: Highest daily average
J70: A5 | K70: Jan
K71: Feb
K72: Mar
K73: Apr
K74: May
K75: Jun
K76: Jul
K77: Aug
K78: Sep
K79: Oct
K80: Nov
K81: Dec
K82: Annual | L82: =AVERAGE(L70:L81) ->  | M82: =MAX(M70:M81) -> 0 | N82: =AVERAGE(N70:N81) ->  | O82: =MAX(O70:O81) -> 0

Sheet CO 95% 10 min
A1: =+'Cover Page'!$B$29 -> Annual Performance Report 2024 | E1: =+'Cover Page'!$B$33 -> SUEZ R&R Wilton 11 EfW
A3: Monitoring of Carbon Monoxide (10-minute avg) | E3: Whole Installation | H3: See Notes in Cell S3 | J3: =+A3 -> Monitoring of Carbon Monoxide (10-minute avg) | O3: Per Combustion Line | Q3: Notes: | S3: Notes:
A5: Please complete this tab for your plant if you have 10-minute average CO ELVs; otherwise, leave it blank and complete the CO 0.5 hourly tab
S7: User to add logic to complete Whole installation, Table A5:H18. From the data in Per Combustion Line, Table K6:Q79, subject to No. of lines installed
A8: =+'Cover Page'!C39 -> 2024 | B8: 10-minute Reference Periods | F8: Daily Reference Periods
A9: mg/Nm3 | B9: 95%ile 10-min avg CO ELV | C9: Highest daily 95%ile 10-min average | D9: Monthly mean of 10-min averages | E9: Highest 10-min average | F9: Daily CO ELV | G9: Monthly mean of daily averages | H9: Highest daily average | K9: =+A8 -> 2024 | L9: mg/Nm3 | M9: Highest daily 95%ile 10-min average | N9: Monthly mean of 10-min averages | O9: Highest 10-min average | P9: Monthly mean of daily averages | Q9: Highest daily average
A10: Jan | B10: 150 | C10: =AVERAGE(M10,M25,M40,M55,M70) -> 9.5 | D10: =AVERAGE(N10,N25,N40,N55,N70) -> 5 | E10: =MAX(O10,O25,O40,O55,O70) -> 234 | F10: 50 | G10: =AVERAGE(P10,P25,P40,P55,P70) -> 5 | H10: =MAX(Q10,Q25,Q40,Q55,Q70) -> 8 | K10: A1 | L10: Jan | M10: 8 | N10: 4 | O10: 234 | P10: 4 | Q10: 5
A11: Feb | B11: =+B10 -> 150 | C11: =AVERAGE(M11,M26,M41,M56,M71) -> 9 | D11: =AVERAGE(N11,N26,N41,N56,N71) -> 5.5 | E11: =MAX(O11,O26,O41,O56,O71) -> 120 | F11: =+F10 -> 50 | G11: =AVERAGE(P11,P26,P41,P56,P71) -> 5.5 | H11: =MAX(Q11,Q26,Q41,Q56,Q71) -> 10 | L11: Feb | M11: 7 | N11: 4 | O11: 120 | P11: 4 | Q11: 5
A12: Mar | B12: =+B11 -> 150 | C12: 7.5 | D12: 5.5 | E12: 163 | F12: =+F11 -> 50 | G12: 5.5 | H12: 8 | L12: Mar | M12: 5 | N12: 4 | O12: 163 | P12: 4 | Q12: 5 | S12: Whole Installation table A5:H18:
A13: Apr | B13: 150 | C13: 9.5 | D13: 11.5 | E13: 173 | F13: 50 | G13: 11.5 | H13: 8 | L13: Apr | M13: 4 | N13: 15 | O13: 173 | P13: 15 | Q13: 0 | S13: Mean: for 10-min and daily periods use average of all operational combustion lines.
A14: May | B14: 150 | C14: 10 | D14: 4 | E14: 157 | F14: 50 | G14: 4 | H14: 15 | L14: May | M14: 2 | N14: 2 | O14: 2 | P14: 2 | Q14: 2
A15: Jun | B15: 150 | C15: 11.5 | D15: 5 | E15: 125 | F15: 50 | G15: 5 | H15: 11 | L15: Jun | M15: 7 | N15: 4 | O15: 116 | P15: 4 | Q15: 7
A16: Jul | B16: 150 | C16: 13 | D16: 5 | E16: 288 | F16: 50 | G16: 23.5 | H16: 12 | L16: Jul | M16: 13 | N16: 4 | O16: 87 | P16: 41 | Q16: 5 | S16: Maximum: for 10-min and daily periods use the highest of all operational combustion lines in any month.
A17: Aug | B17: 150 | C17: 12.5 | D17: 5.5 | E17: 1298 | F17: 50 | G17: 5.5 | H17: 18 | L17: Aug | M17: 13 | N17: 5 | O17: 1298 | P17: 5 | Q17: 18
A18: Sep | B18: 150 | C18: 15.5 | D18: 6.5 | E18: 164 | F18: 50 | G18: 6.5 | H18: 12 | L18: Sep | M18: 15 | N18: 5 | O18: 116 | P18: 5 | Q18: 11
A19: Oct | B19: 150 | C19: 12 | D19: 5.5 | E19: 196 | F19: 50 | G19: 5.5 | H19: 9 | L19: Oct | M19: 8 | N19: 4 | O19: 196 | P19: 4 | Q19: 6
A20: Nov | B20: 150 | C20: 13 | D20: 5 | E20: 203 | F20: 50 | G20: 5 | H20: 10 | L20: Nov | M20: 11 | N20: 5 | O20: 203 | P20: 5 | Q20: 10
A21: Dec | B21: 150 | C21: 20.5 | D21: 7.5 | E21: 257 | F21: 50 | G21: 7.5 | H21: 13 | L21: Dec | M21: 29 | N21: 10 | O21: 197 | P21: 10 | Q21: 13
L22: Annual | M22: =AVERAGE(M10:M21) -> 10.16666667 | O22: =MAX(O10:O21) -> 1298 | P22: =AVERAGE(P10:P21) -> 8.583333333 | Q22: =MAX(Q10:Q21) -> 18
K24: =+A8 -> 2024 | L24: mg/Nm3 | M24: Highest daily 95%ile 10-min average | N24: Monthly mean of 10-min averages | O24: Highest 10-min average | P24: Monthly mean of daily averages | Q24: Highest daily average
K25: A2 | L25: Jan | M25: 11 | N25: 6 | O25: 90 | P25: 6 | Q25: 8
L26: Feb | M26: 11 | N26: 7 | O26: 111 | P26: 7 | Q26: 10
L27: Mar | M27: 10 | N27: 7 | O27: 90 | P27: 7 | Q27: 8
L28: Apr | M28: 15 | N28: 8 | O28: 47 | P28: 8 | Q28: 8
L29: May | M29: 18 | N29: 6 | O29: 157 | P29: 6 | Q29: 15
L30: Jun | M30: 16 | N30: 6 | O30: 125 | P30: 6 | Q30: 11
L31: Jul | M31: 13 | N31: 6 | O31: 288 | P31: 6 | Q31: 12
L32: Aug | M32: 12 | N32: 6 | O32: 185 | P32: 6 | Q32: 8
L33: Sep | M33: 16 | N33: 8 | O33: 164 | P33: 8 | Q33: 12
L34: Oct | M34: 16 | N34: 7 | O34: 136 | P34: 7 | Q34: 9
L35: Nov | M35: 15 | N35: 5 | O35: 153 | P35: 5 | Q35: 8
L36: Dec | M36: 12 | N36: 5 | O36: 257 | P36: 5 | Q36: 6
L37: Annual | M37: =AVERAGE(M25:M36) -> 13.75 | O37: =MAX(O25:O36) -> 288 | P37: =AVERAGE(P25:P36) -> 6.416666667 | Q37: =MAX(Q25:Q36) -> 15
K39: =+A8 -> 2024 | L39: mg/Nm3 | M39: Highest daily 95%ile 10-min average | N39: Monthly mean of 10-min averages | O39: Highest 10-min average | P39: Monthly mean of daily averages | Q39: Highest daily average
K40: A3 | L40: Jan
L41: Feb
L42: Mar
L43: Apr
L44: May
L45: Jun
L46: Jul
L47: Aug
L48: Sep
L49: Oct
L50: Nov
A51: Comments : | L51: Dec
A52: Environment Agency explanatory note: The 10-minute average ELV is based on the “95th percentile”. In this case this means that 95% of the 10 minute averages in the relevant 24-hour period (i.e. 137) must be below 150 mg/Nm3, and 5% (i.e. 7) are allowed to be any value above 150 mg/Nm3. Whilst we expect operators to minimise CO emissions at all times, it is perfectly acceptable for the value of the maximum 10-minute average to be above 150 mg/Nm3, provided the 95th percentile ELV has been met for that period. | L52: Annual | M52: =AVERAGE(M40:M51) ->  | O52: =MAX(O40:O51) -> 0 | P52: =AVERAGE(P40:P51) ->  | Q52: =MAX(Q40:Q51) -> 0
K54: =+A8 -> 2024 | L54: mg/Nm3 | M54: Highest daily 95%ile 10-min average | N54: Monthly mean of 10-min averages | O54: Highest 10-min average | P54: Monthly mean of daily averages | Q54: Highest daily average
K55: A4 | L55: Jan
L56: Feb
L57: Mar
L58: Apr
L59: May
L60: Jun
L61: Jul
L62: Aug
L63: Sep
L64: Oct
L65: Nov
L66: Dec
L67: Annual | M67: =AVERAGE(M55:M66) ->  | O67: =MAX(O55:O66) -> 0 | P67: =AVERAGE(P55:P66) ->  | Q67: =MAX(Q55:Q66) -> 0
K69: =+A8 -> 2024 | L69: mg/Nm3 | M69: 95%ile 10-min avg maximum | N69: Monthly CO 10-min avg mean | O69: 10-min avg maximum | P69: Monthly daily mean | Q69: Monthly daily maximum
K70: A5 | L70: Jan
L71: Feb
L72: Mar
L73: Apr
L74: May
L75: Jun
L76: Jul
L77: Aug
L78: Sep
L79: Oct
L80: Nov
L81: Dec
L82: Annual | M82: =AVERAGE(M70:M81) ->  | O82: =MAX(O70:O81) -> 0 | P82: =AVERAGE(P70:P81) ->  | Q82: =MAX(Q70:Q81) -> 0

Sheet NH3
A1: =+'Cover Page'!$B$29 -> Annual Performance Report 2024 | E1: =+'Cover Page'!$B$33 -> SUEZ R&R Wilton 11 EfW
A3: Monitoring of Ammnonia emissions | D3: Whole Installation | G3: See Notes in Cell Q3 | J3: =+A3 -> Monitoring of Ammnonia emissions | N3: Per Combustion Line | Q3: Notes:
Q4: User to add logic to complete Whole installation, Table A5:G18. From the data in Per Combustion Line, Table J6:O79, subject to No. of lines installed
A5: =+'Cover Page'!C39 -> 2024 | B5: 1/2 Hourly Reference Periods | E5: Daily Reference Periods
A6: mg/Nm3 | B6: 1/2 hourly NH3 ELV | C6: Monthly mean of half-hourly averages | D6: Highest half- hourly average | E6: Daily NH3 ELV | F6: Monthly mean of daily averages | G6: Highest daily average | J6: =+A5 -> 2024 | K6: mg/Nm3 | L6: Monthly mean of half-hourly averages | M6: Highest half- hourly average | N6: Monthly mean of daily averages | O6: Highest daily average
A7: Jan | B7: None | C7: =AVERAGE(L7,L22,L37,L52,L67) -> 0.5 | D7: =MAX(M7,M22,M37,M52,M67) -> 12 | E7: 15 | F7: =AVERAGE(N7,N22,N37,N52,N67) -> 0.5 | G7: =MAX(O7,O22,O37,O52,O67) -> 2 | J7: A1 | K7: Jan | L7: 1 | M7: 12 | N7: 1 | O7: 2
A8: Feb | B8: =+B7 -> None | C8: =AVERAGE(L8,L23,L38,L53,L68) -> 1 | D8: =MAX(M8,M23,M38,M53,M68) -> 8 | E8: 15 | F8: =AVERAGE(N8,N23,N38,N53,N68) -> 1 | G8: =MAX(O8,O23,O38,O53,O68) -> 3 | K8: Feb | L8: 1 | M8: 8 | N8: 1 | O8: 3
A9: Mar | B9: =+B8 -> None | C9: 0.5 | D9: 8 | E9: 15 | F9: 0.5 | G9: 3 | K9: Mar | L9: 1 | M9: 8 | N9: 1 | O9: 3 | Q9: Whole Installation table A5:G18:
A10: Apr | B10: None | C10: 1 | D10: 11 | E10: 15 | F10: 1 | G10: 3 | K10: Apr | L10: 1 | M10: 11 | N10: 1 | O10: 3 | Q10: Mean: for 1/2 hourly and daily periods calculate mean of values across all operational combustion lines for the month
A11: May | B11: None | C11: 1 | D11: 8 | E11: 15 | F11: 1 | G11: 2 | K11: May | L11: 1 | M11: 8 | N11: 1 | O11: 2
A12: Jun | B12: None | C12: 0 | D12: 3 | E12: 15 | F12: 0 | G12: 1 | K12: Jun | L12: 0 | M12: 3 | N12: 0 | O12: 1
A13: Jul | B13: None | C13: 0.5 | D13: 9 | E13: 15 | F13: 0.5 | G13: 1 | K13: Jul | L13: 1 | M13: 3 | N13: 1 | O13: 1 | Q13: Maximum: for 1/2 hourly and daily periods use the highest value across all operational combustion lines for the month
A14: Aug | B14: None | C14: 0.5 | D14: 17 | E14: 15 | F14: 0.5 | G14: 4 | K14: Aug | L14: 1 | M14: 17 | N14: 1 | O14: 4
A15: Sep | B15: None | C15: 1 | D15: 25 | E15: 15 | F15: 1 | G15: 6 | K15: Sep | L15: 1 | M15: 10 | N15: 1 | O15: 4
A16: Oct | B16: None | C16: 0.5 | D16: 87 | E16: 15 | F16: 0.5 | G16: 11 | K16: Oct | L16: 1 | M16: 87 | N16: 1 | O16: 11
A17: Nov | B17: None | C17: 1 | D17: 4 | E17: 15 | F17: 1 | G17: 3 | K17: Nov | L17: 1 | M17: 4 | N17: 1 | O17: 3
A18: Dec | B18: None | C18: 1 | D18: 10 | E18: 15 | F18: 1 | G18: 2 | K18: Dec | L18: 1 | M18: 7 | N18: 1 | O18: 2
K19: Annual | L19: =AVERAGE(L7:L18) -> 0.9166666667 | M19: =MAX(M7:M18) -> 87 | N19: =AVERAGE(N7:N18) -> 0.9166666667 | O19: =MAX(O7:O18) -> 11
J21: =+A5 -> 2024 | K21: mg/Nm3 | L21: Monthly mean of half-hourly averages | M21: Highest half- hourly average | N21: Monthly mean of daily averages | O21: Highest daily average
J22: A2 | K22: Jan | L22: 0 | M22: 3 | N22: 0 | O22: 1
K23: Feb | L23: 1 | M23: 8 | N23: 1 | O23: 2
K24: Mar | L24: 0 | M24: 2 | N24: 0 | O24: 1
K25: Apr | L25: 1 | M25: 11 | N25: 1 | O25: 3
K26: May | L26: 1 | M26: 8 | N26: 1 | O26: 2
K27: Jun | L27: 0 | M27: 3 | N27: 0 | O27: 1
K28: Jul | L28: 0 | M28: 9 | N28: 0 | O28: 1
K29: Aug | L29: 0 | M29: 7 | N29: 0 | O29: 2
K30: Sep | L30: 1 | M30: 25 | N30: 1 | O30: 6
K31: Oct | L31: 0 | M31: 3 | N31: 0 | O31: 3
K32: Nov | L32: 1 | M32: 4 | N32: 1 | O32: 1
K33: Dec | L33: 1 | M33: 10 | N33: 1 | O33: 2
K34: Annual | L34: =AVERAGE(L22:L33) -> 0.5 | M34: =MAX(M22:M33) -> 25 | N34: =AVERAGE(N22:N33) -> 0.5 | O34: =MAX(O22:O33) -> 6
J36: =+A5 -> 2024 | K36: mg/Nm3 | L36: Monthly mean of half-hourly averages | M36: Highest half- hourly average | N36: Monthly mean of daily averages | O36: Highest daily average
J37: A3 | K37: Jan
K38: Feb
K39: Mar
K40: Apr
K41: May
K42: Jun
K43: Jul
K44: Aug
K45: Sep
K46: Oct
K47: Nov
A48: Comments : | K48: Dec
A49: An indicated ELV value of zero in the table above means that no ammonia limit is/was set in the permit. | K49: Annual | L49: =AVERAGE(L37:L48) ->  | M49: =MAX(M37:M48) -> 0 | N49: =AVERAGE(N37:N48) ->  | O49: =MAX(O37:O48) -> 0
J51: =+A5 -> 2024 | K51: mg/Nm3 | L51: Monthly mean of half-hourly averages | M51: Highest half- hourly average | N51: Monthly mean of daily averages | O51: Highest daily average
J52: A4 | K52: Jan
K53: Feb
K54: Mar
K55: Apr
K56: May
K57: Jun
K58: Jul
K59: Aug
K60: Sep
K61: Oct
K62: Nov
K63: Dec
K64: Annual | L64: =AVERAGE(L52:L63) ->  | M64: =MAX(M52:M63) -> 0 | N64: =AVERAGE(N52:N63) ->  | O64: =MAX(O52:O63) -> 0
J66: =+A5 -> 2024 | K66: mg/Nm3 | L66: Monthly mean of half-hourly averages | M66: Highest half- hourly average | N66: Monthly mean of daily averages | O66: Highest daily average
J67: A5 | K67: Jan
K68: Feb
K69: Mar
K70: Apr
K71: May
K72: Jun
K73: Jul
K74: Aug
K75: Sep
K76: Oct
K77: Nov
K78: Dec
K79: Annual | L79: =AVERAGE(L67:L78) ->  | M79: =MAX(M67:M78) -> 0 | N79: =AVERAGE(N67:N78) ->  | O79: =MAX(O67:O78) -> 0

Sheet Template changes log
A1: Log of changes to template (Environment Agency use only)
A3: Date | B3: Description of change | C3: New version number and date
A4: 2024-01-16 | B4: Air (periodic) tab: corrected default O2 reference from 6 to 11% | C4: Version 23.5a (for incinerators) - 16/01/2024
A5: 2024-09-23 | B5: Air (periodic) tab: corrected symbol for Thallium to Tl
A6: 2024-09-23 | B6: Air (periodic) tab: removed last year's references to different emission limit values applying from 03/12/23 and updated all relevant ELVs
A7: 2024-09-23 | B7: Tabs for continuously monitored pollutants (HCl, SO2 etc.): changed terminology in table headings to improve clarity
A8: 2024-09-23 | B8: Tabs for continuously monitored pollutants (HCl, SO2 etc.): removed last year's references to different emission limit values applying from 03/12/23 and updated all relevant ELVs
A9: 2024-09-23 | B9: Perf 1 tab: updated formula for water usage to report m3 rather than litres and corrected error with formula copying operator name
A10: 2024-09-23 | B10: Operational Summary tab: table added on start-up's and shut-downs
A11: 2024-09-23 | B11: Operational Summary tab: table added on dioxins and mercury protocols
A12: 2024-09-23 | B12: Operational Summary tab: table added on AST, QAL 2 and calibration functions
A13: 2024-09-23 | B13: CO2 N2O tab: various changes made to notes to reflect the fact that most plants should now have calibrated CEMS and flow meters + some have C14 samplers and more up to date industry data | C13: Version 24a (for incinerators) - 23/09/24
A14: 2024-01-08 | B14: CO2 N2O tab: Changed the N2O CO2 equivalence factor from 298 to 265 in line with recently updated government greenhouse gas figures: https://www.gov.uk/government/publications/greenhouse-gas-reporting-conversion-factors-2024
A15: 2024-01-08 | B15: CO2 N2O tab: Added an additional requirement for municipal EfW plants to state the yearly average biogenic percentage of the waste by mass, and reference to a document which sets out a methodology for calculating NCV of waste from the results of C14 sampling.
A16: 2024-01-08 | B16: Permit Compliance tab: Two additional columns added + explanatory notes to the table entitled "Summary of non-compliances under the permit" to allow CCS scores to be stated where relevant.
A17: 2024-01-08 | B17: Residue Quality tab: Note added explaining application of TOC and LOI limits and asking operators to report both metrics where measured. | C17: Version 24.1a (for incinerators) - 08/11/24
